{"text_format":"1","workbook":"xlsx","n_sheets":5,"sheets":["Sheet1","Full IDP","Parish Level <£20k","Strategic or Generic Projects","Data"],"not_rendered":{"charts":2,"images":0,"macros":1,"external_links":0,"defined_names":12,"comments":4,"pivot_tables":0},"unopened":[],"bounds":{"document_bytes":16777216,"sheet_cells":100000,"rows_first":2000,"rows_last":500,"rows_between":2000,"halvings":0,"cell_chars":16384,"cell_head_chars":4096},"cells_cut":0,"cells_raw":0,"read":"whole","date_system":"1900"}

{"sheet":"Sheet1","index":0,"n_rows":0,"n_cols":0,"rows_kept":0,"cut":false,"hidden":true,"merged":[]}

{"sheet":"Full IDP","index":1,"n_rows":250,"n_cols":32,"rows_kept":250,"cut":false,"hidden":false,"merged":[[236,0,239,0],[236,4,239,4]]}
["Parish / Area","District","Exact Location","Infrastructure Project","Internal Notes","Lead Officer","P1","P2","D","Category","Sub-Category","Project Cost","Evidence","Submitted by:","Submit Date","In SDNP?","Delivered by","Delivery timescale","Existing Secured funding","Funding Gap","PMP Theme","SDNPA Lead","Local Plan Policies","CIL Eligible?","SCF Eligible?","MPF Eligible?","Other Eligible?","Status","Priority","Officer Group Validation","Parish Council Validation","CIL Approved"]
["Angmering","Arun","Angmering Village","Visitor centre and car park to improve access from the village to the SDNP","GG - don't think this was looked at by Head of Team","NH/Ruth James",null,"Y","Y","Education","Visitor Information",250000,"Cost: officer estimate based likely cost of building a facilities and the ancilliary development (car park etc).","Angmering Parish  Rep","2013-04-01",null,null,null,null,{"$f":"L2-S2","v":250000}]
["Clanfield ","EHDC","QECP","Redevelopment of visitor facilites at Queen Elizabeth Country Park","GG - don't think this was looked at by Head of Team","NH/Ruth James",null,"Y","Y","Education","Visitor Information",1500000,"Strategic plan","SDNPA:Western Area Manager (Nick Heasman)","2014-01-01",null,"HCC/FC/SDNPA",2016,"Awaiting confirmation"]
["East Meon","WCC","East Meon C of E Primary School","School Hall extension","GG - don't think this was looked at by Head of Team","Amanda Elms",null,"Y","Y","Education","Primary Education",120000,"School at capacity and hall is now limited.","East Meon Parish Rep","2013-05-01",null,"Hampshire County Council / School Fundraising","2015/16",10000,{"$f":"L4-S4","v":110000}]
["Lewes","Lewes","Lewes Town","Primary school improvements (capacity).  One form of entry (210 places) expanding existing school(s).",null,null,null,"Y","Y","Education","Primary Education",3500000,"‘School Organisation and Place Planning in East Sussex 2013/14’ document.  Development in Lewes area which is not yet permitted.  It will also support built and already committed developments\n",null,"2014-02-01","y","ESCC",2015,"Government grant, \nESCC capital programme, development contributions from S106 agreements and CIL\n"]
["Lewes","Lewes","Lewes Town","Early Years places additional capacity: 72 places (15 hour slots)",null,null,null,"Y","Y","Education","Primary Education",500000,"ESCC’s Early Years Forecasting Model updated on12.12.13.  Development in Lewes area which is not yet permitted\n\nIt will also support built and already committed developments\n","East Sussex County Council","2014-02-01","Y","ESCC",2015,"Government grant, \nESCC capital programme, development contributions from S106 agreements and CIL\n"]
["Lewes","Lewes","Sussex Downs College (Lewes Campus)","Further Education college provision 16-19yo.  Additional 150 workplaces in total of which 75% (112 workplaces)  attributed to Lewes District IDP. \n\nThis further splits to 50% of overall total (75 places) attributed to Lewes District and 25% (37 workplaces) attributed to South Downs National Park.\n",null,null,null,"Y","Y","Education","Secondary Education",650000,"ESCC’s Post-16 Forecasting Model update on 13.11.13.  Estimated cost = c £2.6million  in total of which 75% (£1.95m) attributed to Lewes District IDP.\n\nThis further splits to 50% of total cost (£1.3m) attributed to Lewes District and 25%(£0.65m to SDNP.  Need generated by development in  Lewes District/South Downs National Park area which is not yet permitted\n\n","East Sussex County Council","2014-02-01","y","ESCC",2020,"CIL\nSouth East Local Enterprise Partnership\nCoast to Capital Local Enterprise Partnership"]
["Lewes","Lewes","Plumpton College","Further Education college provision 16-19yo. Additional 100 workplaces in total of which 40% (40 workplaces) attributed to Lewes District IDP.\n\n This further splits to 30% of overall total (30 places) attributed to Lewes District and 10% (10 workplaces) attributed to South Downs National Park ",null,null,null,"Y","Y","Education","Secondary Education",127000,"Estimated cost = c £1.27 million in total of which 40% (£0.508m) attributed to Lewes District IDP.  Need generated by development in  Lewes District/South Downs National Park area which is not yet permitted.  \n\n\nThis further splits to 30% of total cost (£0.381m) attributed to Lewes District and 10% (£0.127m to SDNP\n","East Sussex County Council","2014-02-01","y","ESCC",2020,"CIL\nSouth East Local Enterprise Partnership\nCoast to Capital Local Enterprise Partnership\n"]
["Petersfield","EHDC",null,"Additional primary provision",null,null,null,"Y","Y","Education","Primary Education",5500000,"EHDC JCS Appendix 2 (HCC)","EHDC JCS.  Hampshire County Council","2014-10-01",null,"HCC/Developer Funding"]
["Petersfield","EHDC","Petersfield ","210 Primary School places to cover Petersfield (relating to population growth not new development)",null,"Amanda Elms",null,"Y","Y","Education","Primary Education",1500000,"Hampshire County Council Children's Services Dept","Hampshire County Council","2013-02-01",null,"HCC/Developer Funding",null,"1500000 HCC capital finding",0]
["Petworth","CDC","Within parish","National Park Visitor Centre","more detail needed","Allison Thorpe",null,"Y","Y","Education","Visitor Information",100000,"Draft Petworth Neighbourhood Plan Scoping Study.  Cost: officer estimate based on similar project, assumed free standing small kiosk or shared facility.","Petworth Parish Council","2013-06-01",null,"SDNPA","2015-2018","None"]
["Storrington and Sullington","Horsham","Storrington High Street","Tourist information facility","GG - don't think this was looked at by Head of Team","NH/Ruth James",null,"Y","Y","Education","Visitor Information",100000,"Community Action Plan to promote proximity to SDNP.  Cost: officer estimate based on similar project, assumed free standing small kiosk or shared facility.","Storrington and Sullington Parish Rep","2013-04-01",null,"Tourist Information is responsibility of District Council.",null,null,{"$f":"L12-S12","v":100000}]
["Twyford","EHDC","Twyford Primary School - Potential for new site for school as part of the Neighbourhood Plan as current site over-crowded no car parking in the middle of an residential area","Primary school improvements (capacity or relocation)","GG - don't think this was looked at by Head of Team","Amanda Elms",null,"Y","Y","Education","Primary Education",1500000,"Temporary Classrooms\nTraffic / parking problems\nConcern over children’s safety\nLack of children play space\n","Twyford Parish","2013-06-01",null,"Hants County Council",null,"None",{"$f":"L13-S13","v":{"$error":"#VALUE!"}}]
["Heritage Coast area","Eastbourne","Crowlink, Frog Firle Farm, Seven Sisters area","Access to, and interpretation of, archaeological sites","Needs more detail",null,null,null,"Stephen Sibbald","Education","Interpretation",100000,"Cost: officer estimate based on similar project. £50k each site.","National Trust; Jane.arnott@nationaltrust.org.uk; jane.cecil@nationaltrust.org.uk; National Trust - London and South East, Polesden Lacey, Dorking, Surrey, RH5 6BD, 01372 455008","2013-07-01"]
["Buriton","EHDC","Village Hall","Improve Village Hall: energy efficiency; new lighting; solar panels; insultation etc",null,"Ray Drabble",null,"Y","Y","Facilities Services","Energy Efficiency Improvements",50000,"Parish Plan. Cost: officer estimate based on similar project.","Buriton Parish Council","2013-08-01",null,null,null,null,{"$f":"L15-S15","v":50000},null,"RCD"]
["Clanfield ","EHDC","QECP","Improve visitor facilities and capacity at QECP","No detail","Chris Patterson",null,"Y","Y","Facilities Services","Community building",500000,"Hampshire Strategic Infrastructure Statement / Hampshire County Council Countryside Service.  Cost estimated by officers.","Hampshire County Council","2013-02-01",null,"HCC with Forestry Commission, SDNPA","tbc"]
["Corhampton & Meonstoke","WCC","Meon Hall, Meonstoke","Village Hall Improvement – replace suspended ceiling to main hall",null,"Chris Patterson",null,"Y","Y","Facilities Services","Village Hall",87000,"Meon Hall Management committee plan / 5 year plan","Parish Council - Nick Riley, chair@candm-pc.gov.uk; 01489 877962","2013-06-01",null,"Parish Council","2014 Q1",0]
["Fernhurst","CDC","Scout Hut / Youth Club","Refurbish Scout Hut.","Identified in the Neighbourhood Plan","Chris Patterson",null,"Y","Y","Facilities Services","Community use",50000,"Neighbourhood Plan Policy CF1.  Cost: officer estimate based on similar project.","Neighbourhood Plan","2014-07-01",null,null,null,null,{"$f":"L18-S18","v":50000}]
["Funtington","CDC","Funtington, south of B2146 Common Road at Downs Road","New Community Centre, replacement for existing village hall.",null,"Chris Patterson",null,"Y","Y","Facilities Services","Village Hall",900000,"Plans are well advanced for a new Community Centre for the Funtington Parish (includes the villages of Funtington, West Ashling, East Ashling and West Stoke, plus the settlements of Upper Hambrook & Sennicotts). It is also for the benefit of neighbouring parishes without community facilities. This will replace the existing time-expired Village Hall in West Ashling.\nThe new Community Centre will be built on two hectares of land, which have been given to the project, close to Funtington and immediately adjacent to the B2146. ","John Peart, Chairman, Funtington District Community Centre Society Ltd , Tel: 01243 575565, e-mail: john.b.peart@gmail.com","2013-06-01",null,"The Community Centre will be built, managed and maintained by a ‘community benefit co-operative’ – Funtington District Community Centre Society Ltd. This co-operative has been set up and registered with the Financial Services Authority, using a grant from West Sussex County Council. ",null,"£500,000 from Seawards Properties Ltd., who will redevelop the old village hall site, and a Public Works Loan of £200,000 has received agreement in principle from the Funtington Parish Council. ",200000]
["Graffam","CDC","Empire Hall, The Street, Graffam (also used by East Lavington)","Improve Village Hall: reglazing windows to accommodate double glazing; recarpet balcony and create storage under roof sides; Restoration of timber floor; Renew heating boiler; Solar panels; Extension of rear of hall with conservatory type committee and small meeting room and to enable extension of kitchen; Replace storage sheds with designed buildings and landscape the garden.\n",null,"Chris Patterson",null,"Y","Y","Facilities Services","Village Hall",100000,"Cost estimate by officers based on substantial refurbishment and sustainability improvements",null,null,null,null,null,null,{"$f":"L20-S20","v":100000}]
["Kingston (East Sussex)","Lewes","Village centre, Community Pavilion","Mobile Post Office - capital purchase",null,"Chris Patterson",null,"Y","Y","Facilities Services","Community service",75000,"Kingston Parish Action Plan 2007 and 2011 and the 2013 village questionnaire (results pending assessment).  The nearest post office facilities are in Lewes or Woodingdean, Brighton.","Kingston (ES) Parish Council","2013-06-01",null,"Kingston Parish Council",2016,null,{"$f":"L21-S21","v":75000}]
["Kingston (East Sussex)","Lewes","Village centre, Community Pavilion","Mobile Library - capital purchase",null,"Chris Patterson",null,"Y","Y","Facilities Services","Community service",75000,"Kingston Parish Action Plan 2007 and 2011 and the 2013 village questionnaire (results pending assessment).  The nearest library in Lewes. Locating these services within the village will improve accessibility and develop community cohesion.","Kingston (ES) Parish Council","2013-06-01",null,"Kingston Parish Council",2016]
["Kingston (East Sussex)","Lewes","Village Hall","Improve Village Hall to facilitate classes",null,"Chris Patterson",null,"Y","Y","Facilities Services","Village Hall",50000,null,"Kingston (ES) Parish Rep","2013-04-01",null,null,null,null,{"$f":"L23-S23","v":50000}]
["Lewes","Lewes","???","Cemetery provision in Lewes",null,"Chris Patterson",null,"Y","Y","Facilities Services","Community service",500000,"Cost estimate excludes land price and includes ground works and fully serviced with car parking and accomodation etc.","Lewes Workshop Reps","2013-04-01",null,null,null,null,{"$f":"L24-S24","v":500000}]
["Lewes","Lewes","Lewes Town Hall","Refurbish Town Hall",null,"Chris Patterson",null,"Y","Y","Facilities Services","Village Hall",50000,null,"Lewes Workshop Reps","2013-04-01",null,null,null,null,{"$f":"L25-S25","v":50000}]
["Liphook","EHDC",null,"From consultation",null,null,null,null,null,"Facilities Services"]
["Parham ","Horsham","Rackham Old School Community Centre","Improve Rackham Old School Community Centre ","No detail","Chris Patterson",null,"Y","Y","Facilities Services","Community building",50000,"Pending further information","Parham Parish Rep","2013-04-01",null,null,null,null,{"$f":"L27-S27","v":50000}]
["Petersfield","EHDC","Love Lane Recreation Ground","New Youth Facility Building",null,null,null,"Y","Y","Facilities Services","Community building",3000000,"Part of the vision from Neighbourhood Plan.  Any re-structuring of the existing Pavilion would be intended to be incorporated within the new building footprint if possible. Provision of facility is seen as being a long term aim.  Petersfield Neighbourhood Plan Group provided costings.","Petersfield Town Council","2014-08-01",null,null,2025]
["Petersfield","EHDC","Festival Hall","Extention and refurbishment (inc. kitchen; toilet facilities; relocation of sound and lighting desks plus office/rehearsal space; improved ventilation; replacement boilers).",null,null,null,"Y","Y","Facilities Services","Community building",2250000,"Current single storey extension provided as a temporary building over 40 years ago. Issues exist re water ingress as well as services beneath floor.  Urgently needed facilities to provide a quality theatre/multi-purpose hall for community use with potential for operating as a Conference venue.  Petersfield Neighbourhood Plan Group provided costings.","Petersfield Town Council","2014-08-01",null,null,"2015/16"]
["Petersfield","EHDC","Flora Twort Gallery","Purchase Property for the Town","Need to investigate why - is it cultural heritage or simply needing a venue?",null,null,"Y","Y","Facilities Services","Community building",250000,"If the Museum seeks to sell the facility to fund its purchase of the old Police Station PTC would want to save this building for the town.  Petersfield Neighbourhood Plan Group provided costings.","Petersfield Town Council","2014-08-01",null,null,"2020/21"]
["Petersfield","EHDC","Town Centre","Provision of youth café - excluding land purchase",null,null,null,"Y","Y","Facilities Services","Community building",200000,"Exact location to be confirmed but potentially seeking to use an empty shop premises.  Petersfield Neighbourhood Plan Group provided costings.","Petersfield Town Council","2014-08-01",null,null,"2020/21"]
["Petersfield","EHDC","Festival Hall","Installation of sprinkler system",null,null,null,"Y","Y","Facilities Services","Community building",175000,"Need acknowledged following 2008 fire.  Petersfield Neighbourhood Plan Group provided costings.","Petersfield Town Council","2014-08-01",null,null,"2021/22"]
["Petersfield","EHDC","Festival Hall","Stage lighting for theatrical purposes",null,null,null,"Y","Y","Facilities Services","Community building",70000,"Requested by theatrical groups as an improvement to existing facilities to speed up set up and take down from shows as well as improve health & safety matters.  Petersfield Neighbourhood Plan Group provided costings.","Petersfield Town Council","2014-08-01",null,null,"2015/16"]
["Petersfield","EHDC","Festival Hall","Town Hall Entrance and toilet refurbishment",null,null,null,"Y","Y","Facilities Services","Community building",55000,"To improve appearance and access for public and staff working conditions.  Petersfield Neighbourhood Plan Group provided costings.","Petersfield Town Council","2014-08-01",null,null,"2015/16"]
["Petersfield","EHDC","Festival Hall","Double glazing to Rose Room, Changing Rooms and Offices",null,null,null,"Y","Y","Facilities Services","Community building",50000,"Windows to Rose Room and commercial offices on first floor of Festival Hall are now barely weather-proof.  Redecoration has extended their life a bit.  Needed as a priority.  Petersfield Neighbourhood Plan Group provided costings.","Petersfield Town Council","2014-08-01",null,null,2015]
["Petersfield","EHDC","The Heath","Refurbish public toilet facilities",null,null,null,"Y","Y","Facilities Services","Community use",100000,"Current toilets are very poor and do not reflect well on the town or the Council. The Heath is heavily used by visitors and improved facilities are required sooner rather than later.  Petersfield Neighbourhood Plan Group provided costings.","Petersfield Town Council","2014-08-01",null,null,"2015/16"]
["Petersfield","EHDC","Love Lane Recreation Ground","New Toilet Facilities for Skatepark",null,null,null,"Y","Y","Facilities Services","Community use",80000,"Recognised need to provide toilet facilities at Love Lane primarily for skatepark users – a number of whom travel significant distances.  Petersfield Neighbourhood Plan Group provided costings.","Petersfield Town Council","2014-08-01",null,null,"2016/17"]
["Petersfield","EHDC","Petersfield","Petersfield Open air swimming pool - renewable energy heating of the pool extending the use through the year",null,"Ray Drabble",null,"Y","Y","Facilities Services","Energy Efficiency Improvements",75000,"Feasibility study and charity trust survey of users","SDNPA:Western Area Manager (Nick Heasman)","2014-01-01",null,"Petersfield outdoor swimming pool",2017,"?",null,null,"RCD"]
["Ringmer","Lewes","Ringmer","Extend Village Hall",null,"Chris Patterson",null,"Y","Y","Facilities Services","Village Hall",50000,null,"Ringmer Parish Rep","2013-04-01",null,null,null,null,{"$f":"L39-S39","v":50000}]
["Rogate","EHDC","Village Hall","Village Hall upstairs accomodation",null,"Chris Patterson",null,"Y","Y","Facilities Services","Village Hall",50000,"There are stairs up to some very useful accommodation above the Hall itself, and above the Heritage Centre and the Youth Club. It has been used in the past, but now cannot be used because of fire regulations. The whole area needs to be fire-proofed. If this was done, there could be several  workshops, meeting rooms, or even emergency overnight accommodation in what at present is empty space. An application was made to the Jubilee Millions for this purpose but was unsuccessful.","Rogate Village Hall Committee","2013-07-01"]
["Sheet","EHDC","Sheet Village Recreation Ground east of Portlands Close","Refurbish and Extend Scout Hut (permission granted, seeking funding)","SDNP/13/00125/FUL",null,null,"Y","Y","Facilities Services","Community use",130000,"Permission granted for works","Sheet Parish Council","2014-11-01",null,null,null,60000,{"$f":"L41-S41","v":70000}]
["Slindon","Arun","Possible location at Pumpkin Lodge (requires restoration)","Shared office accomodation for volunteers and village residents",null,"Chris Patterson",null,"Y","Y","Facilities Services","Community use",50000,"Consultants Report.  Cost estimate based on refurbishment and fit-out cost of a community building including hot desk, toilet and access.","National Trust; Jane.arnott@nationaltrust.org.uk; jane.cecil@nationaltrust.org.uk; National Trust - London and South East, Polesden Lacey, Dorking, Surrey, RH5 6BD, 01372 455008","2013-07-01",null,null,null,null,50000]
["Twyford","EHDC","Twyford Village Hall","Village Hall - refurbish and extend ",null,"Chris Patterson",null,"Y","Y","Facilities Services","Village Hall",75000,"£75 - £100k.  Demand exceeds supply  and further meeting /storage space required","Twyford Parish","2013-06-01",null,"Parish Hall Trustees",2016,"None",{"$error":"#VALUE!"}]
["Washington","Horsham","Washington Village","Village Hall improvements",null,"Chris Patterson",null,"Y","Y","Facilities Services","Village Hall",50000,"Parish Plan 2004.  Washington has a well-used village hall requiring some updating and improvements.  Works to improve the roof, replace the floor in the main hall, general maintenance and redecoration.  There are many village groups and local organisations that enjoy using the hall.  With increased numbers of residents expected, the Village Hall Management Committee would welcome funds to ensure that the hall is fit for purpose for many generations to come.","Washington Parish","2013-05-01",null,null,2018,0,50000]
["Wisborough Green ","CDC","The Green, Wisborough Green","Ongoing operation of the Public toilets",null,"Chris Patterson",null,"Y","Y","Facilities Services","Community use",{"$f":"12000*10","v":120000},"Petition (>1,000 ticks on sheet in toilets by users indicating 33% also using other  village facilities ie econ + leisure, and, 25% making use of them when on the A272.  550 signatures on paper petition supporting their contd existence.  300 signatures on internet petition.  Proponent suggests ongoing cost of £12,000/year.  Capitalised for CIL purposes.","Wisborough Green  Parish Rep","2013-04-01",null,"Currenty Chichester District Council.",2015,0,120000]
["Wisborough Green ","CDC","Adjacent to the Green, Wisborough Green ","Village Hall Refurbishment",null,"Chris Patterson",null,"Y","Y","Facilities Services","Village Hall",60000,"Ward Profile 2011 WG Ward produced by Corporate Info Team within CDC","Wisborough Green  Parish Rep","2013-04-01",null,"Parish Council and Village Hall Committee",null,0,60000]
["Wiston","Horsham","New site in Wiston Village centre","Replacement Village Hall",null,"Chris Patterson",null,"Y","Y","Facilities Services","Village Hall",200000,"The current village hall was poorly sited when it was built 50 years ago.  Access is close to a blind summit on the busy A283, which deters visitors of a nervous disposition.  The hall is in very poor condition and would require a great deal of work to bring it up to standard.  Councillors are of the opinion that the most efficient solution would be a new hall, in a central location, built from sustainable materials, with eco services and facilities.","Wiston Parish Rep","2013-04-01",null,null,2020,null,200000]
["Worldham","EHDC","East Worldham Village Hall","Improve Village Hall: New floor, lighting, disabled access improvements, new roof tiles, insulation",null,"Chris Patterson",null,"Y","Y","Facilities Services","Village Hall",50000,"Parish Plan","Worldham Parish Rep","2013-04-01",null,"Worldham Parish Council","2013-2018",null,50000]
["Angmering","Arun","North of Angmering Village","Create balancing pond.","Currently WSCC working with EA on upstream at attenuation on the Black Ditch, this may include works on the balancing pond. We (EA, ADC and WSCC) have carried out a recent walk of the whole area and have identified some possible quick wins. Further investigation due to be carried out to look at options for longer term actions. Grant in Aid Funding submission is in the pipeline for 2014/15 for these works.  RCD Note: Going back to WSCC on applicability for IDP.","Ray Drabble","Y",null,null,"Green","Flood management",35000," Cost estimate by officers based on similar projects.","Angmering Parish  Rep","2013-04-01",null,"West Sussex County, Arun District, Environment Agency",null,null,35000,null,"RCD"]
["ARRT Area","Multiple","Western Rother\nSouth Ambersham","South Ambersham/ Moorland Farm meander reconnection",null,null,"y",null,null,"Green","Biodiversity project",120000,"A river restoration project to reconnect a remnant meander and its associated floodplain. Restore natural river processes to provide additional habitat diversity to benefit the ecology of the Western Rother. \n·         Fluvial Arun and Rother Adaptation Study (EA, 2013)","Arun & Rother Rivers Trust (ARRT) projectdevelopmentofficer@arrt.org.uk Veronika (Vee) Moore, 01730 813290, 07884 868151","2015-10-01",null,"ARRT icw\nEA & WTT","2016/17+","Potential cash contribution from EA’s flood defence & WFD funds"]
["ARRT Area","Multiple","Western Rother, Midhurst","North Mill fish pass ",null,null,"y",null,null,"Green","Biodiversity project",150000,"A river restoration project to fit a new fish bypass in between the existing main channel (into North Mill pond) and the flood relief channel.\n - North Mill fish pass (EA, 2011) \n - Fluvial Arun and Rother Adaptation Study (EA, 2013)","Arun & Rother Rivers Trust (ARRT) projectdevelopmentofficer@arrt.org.uk Veronika (Vee) Moore, 01730 813290, 07884 868152","2015-10-01",null,"ARRT icw, EA, SDNPA, WSCC, Midhurst College","2016/17+","Potential cash contribution from EA’s flood defence & WFD funds"]
["ARRT Area","Multiple","Western Rother, Stedham","Stedham Mill fish pass",null,null,"y",null,null,"Green","Biodiversity project",125000,"A river restoration project to improve fish passage either by installing a technical fish pass on the over-spill section of the main structure or by removing the automated gate (to reduce the head created at the weir). Latter is cheaper & has wider WFD benefits.\n - Fluvial Arun and Rother Adaptation Study (EA, 2013)","Arun & Rother Rivers Trust (ARRT) projectdevelopmentofficer@arrt.org.uk Veronika (Vee) Moore, 01730 813290, 07884 868153","2015-10-01",null,"ARRT icw, EA & WTT","2016/17+","Potential cash contribution from EA’s flood defence & WFD funds"]
["ARRT Area","Multiple","South Downs NCA/ SE England","Re-fresh South Downs chalk stream project",null,null,"y",null,null,"Green","Biodiversity project",1500000,"Conservation and restoration of freshwater habitats along the chalk scarp slopes of the South Downs, as a follow-on to the South Downs Way Ahead NIA. \n - An Investigation of the Watercourses in Sussex arising from the chalk aquifer of the South Downs (Holmes, 2010) \n - Refining the priority river habitat map for England (NE, 2015) \nCost estimate £1-2m","Arun & Rother Rivers Trust (ARRT) projectdevelopmentofficer@arrt.org.uk Veronika (Vee) Moore, 01730 813290, 07884 868154","2015-10-01",null,"South East Rivers Trust icw, ARRT,  SDNPA, SxWT, KWT","2016-2019","In-kind"]
["ARRT Area","Multiple","Western Rother catchment","Rother riparian re-vegetation project Strand 1",null,null,"y",null,null,"Green","Biodiversity project",35000,"Strand 1: Working with the Woodland Trust & SDNPA to maximise river shade in poorly vegetated reaches of the Rother and its tributaries. Sites with best river shade potential already identified in the feasibility study carried out by Ses Wright (ARRT Project Officer) in 2014/15.\nCost = £35-£75k depending on the length of rirverbank covered","Arun & Rother Rivers Trust (ARRT) projectdevelopmentofficer@arrt.org.uk Veronika (Vee) Moore, 01730 813290, 07884 868155","2015-10-01",null,"ARRT icw SDNPA,  SxWT, NE","2016/17+","Cash/ in-kind from Woodland Trust, SDNPA, ARC project, SxWT, landowners"]
["ARRT Area","Multiple","Western Rother catchment","Rother riparian re-vegetation project Strand 2",null,null,"y",null,null,"Green","Biodiversity project",35000,"Strand 2:  Protecting vulnerable riverbanks from livestock grazing or poaching to reduce soil erosion, increase bank stability & improve water quality. Project could also explore alternative drinking facilities for livestock. \n - New basic rules for farmers to tackle diffuse water pollution from agriculture in England (Defra, 2015)","Arun & Rother Rivers Trust (ARRT) projectdevelopmentofficer@arrt.org.uk Veronika (Vee) Moore, 01730 813290, 07884 868156","2015-10-01",null,"ARRT icw SDNPA,  SxWT, NE","2016/17+"]
["ARRT Area","Multiple","Western Rother catchment","‘Improving Water Quality with Grassed Waterways’ demonstration project ",null,null,"y",null,null,"Green","Biodiversity project",10000,"The soils in the Rother valley are extremely prone to erosion. This project would demonstrate how grassed waterways could be used to 1) convey runoff from concentrated flow without causing soil erosion, 2) control gully erosion and 3) protect and improve water quality. It would fit nicely alongside ARRT’s existing portfolio of soil conservation measures, e.g. the sediment traps work. \n - Research by John Boardman, University of Oxford and Ian Foster, The University of Northampton","Arun & Rother Rivers Trust (ARRT) projectdevelopmentofficer@arrt.org.uk Veronika (Vee) Moore, 01730 813290, 07884 868157","2015-10-01",null,"University of Oxford and Northampton icw ARRT & NE","2016/17+","In-kind"]
["Arun and Rother Rivers",null,null,"Arun and Rother Connections Project (ARRT)",null,"Emily Brennan",null,null,null,"Green","Biodiversity project",2286852,"Rachel Carless RSPB","SDNPA: Biodiversity Lead (Emily Brennan)","2013-09-01",null,"Rachel Carless RSPB",null,1135779]
["Barlavington Estate","CDC","Barlavington Estate","Refurbish Chingford Pond",null,"Emily Brennan","Y",null,null,"Green","Biodiversity project",35000," Cost estimate by officers based on similar projects.","SDNPA Weald and Heath Team (via Andy Beattie)","2013-08-01",null,"SDNPA / landowner",null,"Natural England, Petworth Management Company and WSCC"]
["Barlavington Estate","CDC","Barlavington Estate","Refubish Burton Pond (dredging)",null,"Emily Brennan","Y",null,null,"Green","Biodiversity project",35000,"Cost estimate by officers based on similar projects","SDNPA Weald and Heath Team (via Andy Beattie)","2013-08-01",null,"SDNPA / landowner",null,"Natural England and WSCC","?"]
["Buriton","EHDC",null,"Allotment / Community Orchard provision (not including land purchase)",null,"Pete Currell","Y",null,null,"Green","Community Use G.I.",30000,"Parish Plan","Buriton Parish Council","2013-08-01"]
["Clanfield ","EHDC","QECP","Sustainable transport corridors to Queen Elizabeth Country Park- Identify and improve sustainable transport corridors to Queen Elizabeth Country Park from Clanfield, Buriton and Petersfield.",null,"Tim Squire","Y",null,null,"Green","Access land",2000000,"Hampshire County Council Strategic Infrastructure Statement / HCC Countryside Service","Hampshire County Council","2013-02-01",null,"HCC/NE/SDNPA/EHDC/Parishes/Ramblers/British Horse Society/Cyclists Touring Club/Landowners/Forestry Commission",2022,"none",2000000]
["Fernhurst","CDC","Syngenta Site","Allotment provision (not including land purchase)",null,"Pete Currell","Y",null,null,"Green","Community Use G.I.",30000,"Neighbourhood Plan","Neighbourhood Plan","2014-07-01"]
["Four Marks","EHDC","Swelling Hill Pond in Four Marks","De-silt pond",null,"Emily Brennan","Y",null,null,"Green","Biodiversity project",35000,"Parish Plan","Four Marks Parish Rep","2013-04-01",null,null,"End-2013",null,{"$f":"L63-S63","v":35000}]
["Hampshire","WCC","Andy Gattiker to supply exact location","Complete entrance from South Downs Way into Winchester (Twyford to St Catherine’s Hill)","note HCC CAP to be reviewed soon","Tim Squire","Y",null,null,"Green","Access land","Not known, need permissions","CAP","Hampshire County Council Countryside Service: Alison.perry@hants.gov.uk / petronella.nattrass@hants.gov.uk; 02392 592409 / 01962 845326","2013-07-01",null,"SDNPA",2023]
["Hampshire","WCC","Knowle/Funtley","Meon Valley Trail – upgrade and complete missing link at Knowle/Funtley to provide a ‘Sea to Downs’ link","note HCC CAP to be reviewed soon","Tim Squire","Y",null,null,"Green","Access land",500000,"CAP.  £50,000 Permissions needed","Hampshire County Council Countryside Service: Alison.perry@hants.gov.uk / petronella.nattrass@hants.gov.uk; 02392 592409 / 01962 845326","2013-07-01",null,"HCC, SDNPA",2023,"£75k LSTF; £325k Linking Communities – further £100k needed",100000]
["Hampshire",null,"SDW","Complete South Downs Way between Old Winchester Hill and Beacon Hill","note HCC CAP to be reviewed soon","Tim Squire","Y",null,null,"Green","Access land","Not known, need permissions","CAP","Hampshire County Council Countryside Service: Alison.perry@hants.gov.uk / petronella.nattrass@hants.gov.uk; 02392 592409 / 01962 845326","2013-07-01",null,"SDNPA",2023]
["Hampshire",null,"Buriton / Petersfield and South Harting","New off-road path to avoid busy B2146 ","note HCC CAP to be reviewed soon","Tim Squire","Y",null,null,"Green","Access land",50000,"CAP (4161)","Hampshire County Council Countryside Service: Alison.perry@hants.gov.uk / petronella.nattrass@hants.gov.uk; 02392 592409 / 01962 845326","2013-07-01",null,"HCC Countryside",2023,"none"]
["Hampshire",null,"Shawford and Otterbourne ","Complete NCN route 23 link off-road from Hockley through Shawford and Otterbourne ","note HCC CAP to be reviewed soon","Tim Squire","Y",null,null,"Green","Access land",null,"CAP (T&I)","Hampshire County Council Countryside Service: Alison.perry@hants.gov.uk / petronella.nattrass@hants.gov.uk; 02392 592409 / 01962 845326","2013-07-01",null,"Parish Council, HCC",2023]
["Hampshire",null,null,"New off-road alternatives to Morestead Road to link bridleway and byway network","note HCC CAP to be reviewed soon","Tim Squire","Y",null,null,"Green","Access land",null,"CAP (399, 396)","Hampshire County Council Countryside Service: Alison.perry@hants.gov.uk / petronella.nattrass@hants.gov.uk; 02392 592409 / 01962 845326",null,null,"HCC",2023]
["Hawkely","EHDC","Hawkley Village Pond","Refurbish Hawkley Village Pond (re-line - pending further evidence)",null,"Emily Brennan","Y",null,null,"Green","Biodiversity project",35000,"Seeking further evidence. Cost estimate by officers based on similar projects.","Hawkely Parish Rep","2013-04-01",null,null,null,null,{"$f":"L70-S70","v":35000}]
["Hubs and Gateways","East Hampshire","QECP","Specific projects identified on Full IDP list at Clanfield Parish",null,null,null,null,null,"Green","Access land",250000,"c£1-1.5m scheme to be completed over one year commencing 1 April 2016.For QECP the potential sums are much smaller, with the current estimated cost being £1m, but could be supplemented by some provision from CIL revenues. The anticipated contribution from SDNPA is currently estimated at £100,000 to £250,000.  \nhttps://www.southdowns.gov.uk/wp-content/uploads/2015/12/PP_2015December-17-Agenda-Item-10.pdf"]
["Lewes","Lewes","River-side, Lewes","Riverside path on east side (Timberyard Lane to Cliffe Bridge) and west side (Cliffe Bridge to Willeys Bridge)",null,"Tim Squire","Y",null,null,"Green","Access land",0,"Provided by North Street Quarter developer directly.","Friends of Lewes Society","2013-06-01",null,"Associated developers."]
["Lewes","Lewes","North of Phoenix Causeway Bridge on west side and north of Willeys Bridge on east side","Flood management",null,"Ray Drabble","Y",null,null,"Green","Flood management",0,"Provided by North Street Quarter developer directly.","Friends of Lewes Society","2013-06-01",null,"Santon North Street Ltd on west side; Environment Agency on east side.",null,null,null,null,"RCD"]
["Liss","EHDC","Riverside Railway Walk","River Ems Improvements (added by Chris Manning, from Environment Agency WFD nursery list therefore needs confirmation). ","The River Ems is a heavily modified waterbody, which is failing under WFD against fish, invertebrates and flow. Through PR14/AMP6 Portsmouth Water are improving the their augmentation to the river and address habitat issues at the top of the catchment. This will improve the waterbody but further work is required to reach Good Ecological Potential, and reverse the failing ecology. The suggest project will address fish passage issues at a number of sites as outline in previously commisioned ecological reports on the Ems. ","Emily Brennan","Y",null,null,"Green","Biodiversity project",100000,"South East River Basin Management Plan, WFD","CM has included this on behalf of EA. NB, CM has developed a synergy between IDP and EA Integrated Environment Programme (IEP) to ensure up-to-date list potnetial associated projects. ",null,null,null,null,null,null,null,"CM"]
["Petersfield","EHDC","The Heath","Major Project (erosion control around play area, treatment to Pond margins following erosion, possbile creation of extra islands, woodland thinning).",null,null,"Y",null,null,"Green","Biodiversity project",675000,"Possible Heritage Lottery bid, grants and SDNPA involvement.  Likely to be funded over several years with work commencing on erosion control and bank erosion in short term.  Petersfield Neighbourhood Plan Group provided costings.","Petersfield Town Council","2014-08-01",null,null,"2015/16","HLF funding bid"]
["Petersfield","EHDC","Merrits Meadow North","Renovate derelict meadow and water courses",null,null,"Y",null,null,"Green","Biodiversity project",50000,"Petersfield Neighbourhood Plan Group provided costings.","Petersfield Town Council","2014-08-01",null,"Petersfield Town Council and SDNPA Rangers following transferral of ownership","2015/16"]
["Petersfield","EHDC","Love Lane Recreation Ground","New Community Park",null,null,"Y",null,null,"Green","Open space",250000,"Planned to be constructed in conjunction with the new Youth/Community Facility Building to provide an attractive community park.  Petersfield Neighbourhood Plan Group provided costings.","Petersfield Town Council","2014-08-01",null,null,2025]
["Pyecombe","MSDC","Wolstonbury Hill","Refurbish pond at Wolsonbury Hill",null,"Emily Brennan","Y",null,null,"Green","Biodiversity project",35000," Cost estimate by officers based on similar projects.","National Trust; Jane.arnott@nationaltrust.org.uk; jane.cecil@nationaltrust.org.uk; National Trust - London and South East, Polesden Lacey, Dorking, Surrey, RH5 6BD, 01372 455010","2013-07-01"]
["River Itchen","WCC","River Itchen","River enhancements in physically / visually  accessible reaches in and around Winchester to improve aesthetic appeal and biodiversity value",null,null,"Y",null,null,"Green","Biodiversity project",50000,"Capital to Revenue:  9 to 1","David.Rumble@hiwwt.org.uk Hampshire & Isle of Wight Wildlife Trust ","2014-10-01",null,null,2017,null,null,"People Places; Living Landscapes"]
["Rogate","EHDC","Habin Hill to Garbitts Wood","Tidal Adur Strategy & delivery (added by Chris Manning, from Environment Agency WFD nursery list therefore needs confirmation). ","Delivery of the first joint FCRM and WFD flood defence strategy. The stragegy is the first to integrate  sustainable cost effective flood defence management and WFD objectives. It is not possible to deliver WFD in isolation in this waterbody due to the downstream flood risk implications. ","Emily Brennan","Y",null,null,"Green","Biodiversity project",30000,"South East River Basin Management Plan, WFD","CM has included this on behalf of EA. NB, CM has developed a synergy between IDP and EA Integrated Environment Programme (IEP) to ensure up-to-date list potnetial associated projects. ",null,null,null,null,null,null,null,"CM"]
["Rogate","EHDC",null,"Community Orchard provision and conservation of Parish-held lands.",null,"Pete Currell","Y",null,null,"Green","Community Use G.I.",30000,"Feb 2012/May 2013","Rogate Parish","2013-07-01"]
["Rottingdean","Brighton Hove","Rottingdean","Teville Stream restoration (added by Chris Manning, from Environment Agency WFD nursery list therefore needs confirmation). ","Phase 3 of the Teville Restoration Project. Under WFD the Teville stream catchment is classified in Poor condition. The stream is heavily culverted, acting as drainage for a large urban area, consequently suffering form a high sediment load. The lake acts as a balancing pond and has subsequently silted up. The projects preferred option is to implement a RTE creating more of a natural brackish intertidal habitat. Improving the recreational ammenity for the local community. \n\nNB, this is not within the SDNP however, the stream rises very close to the SDNP boundary; access & recreation links to the SDNP could certainly be developed. (Chris Manning)","Emily Brennan","Y",null,null,"Green","Biodiversity project",390000,"South East River Basin Management Plan, WFD","CM has included this on behalf of EA. NB, CM has developed a synergy between IDP and EA Integrated Environment Programme (IEP) to ensure up-to-date list potnetial associated projects. ",null,null,null,null,null,null,null,"CM"]
["Storrington and Sullington","Horsham","Storrington ","Refurbish village pond ",null,"Emily Brennan","Y",null,null,"Green","Biodiversity project",35000,"Undertaking NP process - more evidence in due course. Cost estimate by officers based on similar projects.","Storrington and Sullington Parish Rep","2013-04-01",null,null,null,null,{"$f":"L83-S83","v":35000}]
["Twyford","EHDC","Itchen Navigation / Twyford Meads Water Meadow ","Upper Itchen Pond Project (added by Chris Manning, from Environment Agency WFD nursery list therefore needs confirmation). ","To assess what is considered to be a naturalised sediment load in the upper Itchen Online Ponds through assessing historical loading and ecosystem dynamics, includes Arlesford Pond a WFD Lake which is showing a deterioration since original classification in 2009. This is required to deliver an element of the diffuse water pollution plan (a remedy for the Itchen SAC which forms part of the Protected Areas Annex D requirements), and to allow us to ascertain a more accurate sedimentation target for condition assessment of the SSSI.","Emily Brennan","Y",null,null,"Green","Biodiversity project",22400,"South East River Basin Management Plan, WFD","CM has included this on behalf of EA. NB, CM has developed a synergy between IDP and EA Integrated Environment Programme (IEP) to ensure up-to-date list potnetial associated projects. ",null,null,null,null,null,null,null,"CM"]
["West Weald",null,"240 km2 in West Sussex/Surrey between Billingshurst/Midhurst/Haslemere/Cranleigh","West Weald Landscape Project",null,"Emily Brennan","Y",null,null,"Green","Biodiversity project",{"$f":"40000*10","v":400000},"Landowner advisory and habitat improvement targets exceeded.  Annual reports available from 2009/10.  Proponent suggests ongoing cost of £40,000 pa (but partly self-funded through donations etc). Capitalised for CIL purposes.","SDNPA: Biodiversity Lead (Emily Brennan)","2013-09-01",null,"Petra Billings Sussex Wildlife Trust leads",null,"Some budget carry forward predicted from April 2014 plus potentially a contribution from WT","£20,000 pa"]
["Winchester","WCC","St Catherine's Hill Nature Reserve, Winchester","Access Infrastructure:  Scoping (phase 1) and upgrade / replacement (phase 2)  of  fixtures & surfaces to control erosion on this highly popular nature reserve",null,null,"Y",null,null,"Green","Access land",100000,"Phase 1 (Y1-3) £5k; Phase 2 (Y 4-15) £50k-£100k.  Capital to Revenue:  10 to 1","David.Rumble@hiwwt.org.uk Hampshire & Isle of Wight Wildlife Trust ","2014-10-01",null,null,2030,null,null,"People Places; Living Landscapes"]
["Worldham","EHDC","Site identified on Wyck Lane (Contingency = elsewhere East Worldham village)","Community Open Space: wild flower meadow, benches, fencing, exercise equipment.",null,null,"Y",null,null,"Green","Open space",50000,"Parish Plan. Cost: officer estimate based on similar project - does not include land purchase.","Worldham Parish Rep","2013-04-01",null,"Worldham Parish Council",null,null,{"$f":"L87-S87","v":50000}]
["Storrington and Sullington","Horsham","Storrington","New GP surgery ","Unable to comment","Andy Beattie",null,"Y","Y","Health","General Health",1000000,"Undertaking NP process - more evidence in due course","Storrington and Sullington Parish Rep","2013-04-01",null,null,null,null,{"$f":"L88-S88","v":1000000}]
["Washington","Horsham","Washington Village","New GP Surgery","Unable to comment","Andy Beattie",null,"Y","Y","Health","General Health",200000,"Parish Plan 2004.  Currently, Washington residents travel to Storrington to use the already over-subscribed surgery.  With a further 78 dwellings in the parish due shortly (and a significant increase in the Storrington catchment area also), Washington would benefit from having a surgery of it’s own. The parish has a predominantly older population and the demand for health services is set to increase.","Washington Parish","2013-04-01",null,null,2020,0,{"$f":"L89-S89","v":200000}]
["Cuckmere Valley","Wealden","Alfriston","Address a range of issues to provide alternative car parking, safer experience for residents and visitors, protect historic buildings and boost the economy","Look to Europe, CIL, LEPs for funding","Andy Beattie","Y","Y","Y","Social & Leisure","Public realm improvement",2000000,"Parish Plan , Consultation, ","SDNPA","2014-07-01",null,"ESCC, Wealden DC","2015/2020",null,null,null,"Abt"]
["Ditchling ","Lewes","Ditchling centre","Refurbish playing fields and changing facilities for pre-school use in the day time. ",null,"Chris Patterson","Y","Y","Y","Social & Leisure","Sports centres, equipment",50000,null,"Ditchling Society","2013-04-01",null,null,null,null,{"$f":"L91-S91","v":50000}]
["Droxford","EHDC","Pavilion","Upgrade Pavilion",null,"Chris Patterson","Y","Y","Y","Social & Leisure","Sports centres, equipment",50000,null,"Droxford Parish Rep","2013-04-01",null,null,null,null,{"$f":"L92-S92","v":50000}]
["East Dean & Friston","Wealden","East Dean / Beachy Head","Flint wall repairs",null,"Pete Currell","Y",null,"Y","Social & Leisure","Cultural heritage",{"$f":"5000*10","v":50000},"Failing walls.  Proponent suggests annual cost of £5000.  Capitalised for CIL purposes over 10 years.","The Gilbert Estate, The Estate Office, The Green, East Dean, East Sussex, BN20 0BY, Charlie@beachyhead.org.uk, 01323 423 906","2013-06-01",null,"Gilbert Estate","ongoing","?"]
["Findon","Arun","Neighbourhood Plan Area","Village Life Enhancement, public realm, traffic and other",null,null,null,"y","y","Social & Leisure","Public realm improvement",400000,"Conservation Area Appraisal Management Plan and Village Plan","Andy Beattie on behalf Parish Council","2015-12-01",null,null,null,"WSCC"]
["Hambledon","EHDC","Village Centre","Provide Museum/Heritage Centre (cricket, lemonade manufacture, vineyard, trades); including shop/café/information/arts centre",null,"Pete Currell","Y","Y","Y","Social & Leisure","Cultural heritage",1500000,"£3,000 for feasibility study + £2.5m for build costs.  Annual Parish Meeting","Hambledon Parish","2013-07-01",null,"Parsih Council",2016,0]
["Stanmber Park","Brighton Hove","Stanmer Park","Hubs and Gateways:  Home Farm Complex (SDNP profile) and New Eastern Area Office",null,null,null,null,null,"Social & Leisure","Cultural heritage",300000,"Subject to a detailed business plan (to be worked up if the Stage 1 HLF bid is successful), the SDNPA makes a total grant of £300,000 to the two projects for Stanmer Park: new premises for the Eastern Area office and greater SDNP public profile in the Home Farm complex.  https://www.southdowns.gov.uk/wp-content/uploads/2015/12/PP_2015December-17-Agenda-Item-10.pdf","SDNPA",42339,"Yes","SDNPA & Brighton and Hove City Council"]
["Lavant","CDC","Football Pitch, Lavant","Refurbish sports facilities ",null,"Chris Patterson","Y","Y","Y","Social & Leisure","Sports centres, equipment",50000,null,"Lavant Parish Rep","2013-04-01",null,null,null,null,{"$f":"L97-S97","v":50000}]
["Liss","EHDC","West Liss Pavilion ","West Liss Pavilion / Community Hall / scout hut: Ongoing project.",null,"Chris Patterson","Y","Y","Y","Social & Leisure","Sports centres, equipment",400000,"Village Design Statement","Liss Parish Council","2013-08-01",null,null,"by 2018",200000]
["Liss","EHDC","Newman Collard Playground ","Sports: Multi-use Games Area (MUGA)",null,"Chris Patterson","Y","Y","Y","Social & Leisure","Sports centres, equipment",50000,null,"Liss Parish Council","2013-08-01",null,null,"by 2018"]
["Liss","EHDC","Liss Forest","Sports: Replacement equipment",null,"Chris Patterson","Y","Y","Y","Social & Leisure","Sports centres, equipment",40000,null,"Liss Parish Council","2013-08-01",null,null,"by 2021"]
["Liss","EHDC","Newland Collard Pavilion","Sports: Drainage improvements ",null,"Chris Patterson","Y","Y","Y","Social & Leisure","Sports centres, equipment",25000,null,"Liss Parish Council","2013-08-01",null,null,"by 2018"]
["Petersfield","EHDC","The Heath","Tumuli investigation (earth mound barrows)","Project commenced until 2018",null,"Y","Y","Y","Social & Leisure","Cultural heritage",150000,"Petersfield Neighbourhood Plan Group provided costings","Petersfield Town Council","2014-08-01",null,"Petersfield Museum","2015-2018"]
["Petersfield","EHDC","The Avenue Pavilion Playing Fields","New play area",null,null,"Y","Y","Y","Social & Leisure","Play space",60000,"Petersfield Neighbourhood Plan Group provided costings","Petersfield Town Council","2014-08-01",null,null,"2017/18"]
["Petersfield","EHDC","Borough Road","Refurbish Play Area",null,null,"Y","Y","Y","Social & Leisure","Play space",50000,"Petersfield Neighbourhood Plan Group provided costings","Petersfield Town Council","2014-08-01",null,null,"2015/16"]
["Petersfield","EHDC","Heath","Refurbish Play Area",null,null,"Y","Y","Y","Social & Leisure","Play space",50000,"Petersfield Neighbourhood Plan Group provided costings","Petersfield Town Council","2014-08-01",null,null,"2015/16"]
["Petersfield","EHDC","Town Centre","Shared-space pedestrian scheme",null,null,"Y","Y","Y","Social & Leisure","Public realm improvement",500000,"Neighbourhood Plan Scheme to create a shared-space scheme from the railway station in Lavant Street through to the bottom of the High Street.  Details to be confirmed.    Petersfield Neighbourhood Plan Group provided costings.","Petersfield Town Council","2014-08-01",null,null,2025]
["Petersfield","EHDC","Lavant Street","National Park Gateway Project",null,null,"Y","Y","Y","Social & Leisure","Public realm improvement",300000,"Plans to plant trees to create an avenue type of feel; shared space scheme at railway station entrance; reduction in road width and increase in pavement width to deter inappropriate parking and speed of travel plus encourage pedestrians; provision of cycle racks; alteration of road priorities along Lavant Street at Charles Street junction and also raised crossing points at junctions with Charles Street and Chapel Street plus near footway to Swan Street car park.  Petersfield Neighbourhood Plan Group provided costings: £250,000-300,000","Petersfield Town Council","2014-08-01",null,null,"?"]
["Petersfield","EHDC","The Heath","Replace boardwalk along Sussex Road",null,null,"Y","Y","Y","Social & Leisure","Public realm improvement",50000,"Current facility is well used but showing signs of age.  Maintenance keeps it in acceptable condition.  Petersfield Neighbourhood Plan Group provided costings.","Petersfield Town Council","2014-08-01",null,null,2022]
["Petersfield","EHDC","Petersfield","Taro leisure centre redevelopment ",null,"Chris Patterson","Y","Y","Y","Social & Leisure","Sports centres, equipment",2500000,"Petersfield Plan","SDNPA:Western Area Manager (Nick Heasman)","2014-01-01",null,"EHDC/Private",2020,"none",2500000]
["Petersfield","EHDC","Penns Farm","Extend football pitches; new changing facilities provision; refurbish play area.",null,null,"Y","Y","Y","Social & Leisure","Sports centres, equipment",2000000,"Penns Field B to be converted into new football pitches with a new changing facility for football to be provided plus an appropriate store for the Town Juniors and PTC grounds staff.  Petersfield Neighbourhood Plan Group provided costings.","Petersfield Town Council","2014-08-01",null,null,"2015/16"]
["Petersfield","EHDC","Penns Farm","New All Weather 3G Pitch for Rugby Club",null,null,"Y","Y","Y","Social & Leisure","Sports centres, equipment",400000,"Funding required for project and precise site on the Penns Farm complex still to be agreed.  Potentially could replace existing rugby training pitch.  Petersfield Neighbourhood Plan Group provided costings.","Petersfield Town Council","2014-08-01",null,null,2016]
["Petersfield","EHDC","Penns Farm","4 x New Tennis Courts",null,null,"Y","Y","Y","Social & Leisure","Sports centres, equipment",300000,"Existing tennis courts at The Avenue are well used.  Seeking to create sports hub at Penns Farm playing fields with facilities potentially to be attached to and managed by Taro Centre.  Petersfield Neighbourhood Plan Group provided costings.","Petersfield Town Council","2014-08-01",null,null,2020]
["Petersfield","EHDC","The Avenue Pavilion Playing Fields","Refurbish Pavilion (inc. new ceiling, windows, heating system, lights and toilets)",null,null,"Y","Y","Y","Social & Leisure","Sports centres, equipment",150000,"Heating system currently adequate but only just. Building would benefit from greater fuel efficiency measures. Petersfield Neighbourhood Plan Group provided costings.","Petersfield Town Council","2014-08-01",null,null,2020]
["Petersfield","EHDC","Love Lane Recreation Ground","Skatepark Phase 2",null,null,"Y","Y","Y","Social & Leisure","Sports centres, equipment",150000,"Planning permission needed followed by funding.  Footprint of extension agreed to include skatepark facilities for the disabled – the first in the country.\nPetersfield Neighbourhood Plan Group provided costings.","Petersfield Town Council","2014-08-01",null,null,"2016/17"]
["Petersfield","EHDC","Love Lane Recreation Ground","Refurbish Pavilion (inc. sewerage and facilities)",null,null,"Y","Y","Y","Social & Leisure","Sports centres, equipment",50000,"Pavilion currently used by Nursery and Juniors football club but not really suiting either group in present state.  Planned re-organisation of internal aspects of building plus sewerage service and water drainage generally.  Petersfield Neighbourhood Plan Group provided costings.","Petersfield Town Council","2014-08-01",null,null,"2017/18"]
["Petworth","CDC","Within parish","Indoor sports centre, pool",null,"Chris Patterson","Y","Y","Y","Social & Leisure","Sports centres, equipment",1000000,"Draft Petworth Neighbourhood Plan Scoping Study","Petworth Parish Council","2013-06-01",null,"County Council ","2015-2018","None"]
["Ringmer","Lewes","???","Provision of public football and hockey pitches and tennis courts.","Needs location","Chris Patterson","Y","Y","Y","Social & Leisure","Sports centres, equipment",850000,"LDC 2006 Study – Ringmer has none. Ringmer Draft NDP.  Cost provided by parish council rep to consultation workshop","Ringmer Parish Rep","2013-04-01",null,null,null,null,{"$f":"L117-S117","v":850000}]
["Rodmell ","Lewes","Village centre","Disabled access and parking for the pavilion ",null,"Chris Patterson","Y","Y","Y","Social & Leisure","Sports centres, equipment",100000,"Requirement as none existing","Rodmell Parish Rep","2013-04-01",null,"Rodmell PC","?","None",{"$f":"L118-S118","v":{"$error":"#VALUE!"}}]
["Rogate","EHDC","Village Hall Recreation Ground","Refurbish all-weather pitch including practice tennis wall & flood lighting; fencing around bowling green, spectator seating.",null,"Chris Patterson","Y","Y","Y","Social & Leisure","Sports centres, equipment",40000,"2007 Parish Plan; July 2007","Rogate Parish","2013-07-01"]
["Rogate","EHDC","Neighbourhood Plan Area","Village Life Enhancement, public realm, traffic and other",null,null,null,"y","y","Social & Leisure","Public realm improvement",750000,"Neighbourhood Plan and preliminary plans already produced","Andy Beattie, on behalf Fiona Dix and Gordon MacAra (Parish and District Councillor)","2015-12-01",null,null,"2016/17","residents and WSCC"]
["Selborne","EHDC","Oakhanger & Goslings Croft Selborne","Playgrounds x 2",null,"Chris Patterson","Y","Y","Y","Social & Leisure","Play space",80000,"Young families without nearby, safe recreation facilities.","Selborne Parish Council","2013-06-01",null,"Parish Council",2015,5000,{"$f":"L121-S121","v":75000}]
["Storrington and Sullington","Horsham","Sullington Manor Farm","Historic Barn Conversion:  Café / Visitor Centre ",null,null,"Y","Y","Y","Social & Leisure","Cultural Heritage",160000,"Provided by proponent: Repair of the barn has been specified and costed at £110,000.  Cost of interpretation material is estimated at £10,000. Cost of installation of café is estimated at additional £40,000. Sullington Manor Farm is a 500 acre farm just east of Storrington entirely within the South Downs National Park.  The farmstead is a now rare example of a previously common manorial farmstead with the former manorial chapel, now church, immediately adjacent to the former manor house. Sullington Manor Farm is privately ownedbut there are two services at the church on most Sundays and hundreds of visitors to the church throughout the year who use farm facilities for parking and access; we have five holiday cottages and almost 1000 visitors from all over the world stay at Sullington each year; in addition buildings at Sullington are used for charitable fundraising events, for art groups, history societies and other interested groups.  \n\nIt is proposed to provide interpretation to satisfy the continual requests for information received from the many curious visitors, in the main body of the barn.  It is also proposed to provide a café to provide simple refreshments, in the northern lean-to.\n\n\nRepair of the building to house the interpretation centre will be by experienced timber framing professional and will maintain the historic detail of the barn which tells of its former purposes.  Repair of a 400 year old barn to keep it as a barn is not commercially sensible and funding is required to deliver this part of the project. The café will operate to cover the costs of running the centre (and café) and to ensure that the future of the building is self-financing.","Gail and Grahame Kittle\nByre Cottages at Sullington Manor Farm\nTel: 01903 745754\nwww.sussexholidaycottages.biz\nGail Kittle <info@sussexholidaycottages.biz>","2014-12-01","Y","Private Enterprise (proponent)",2016,null,{"$f":"L122-S122","v":160000}]
["Twyford","EHDC","Hazeley Road","Twyford Waterworks Museum","NB this is still a Southern Water owned operational site. Might there be a legitimate request for CIL funding associated with the onsite museum? If so, reclassify to 'Social & Leisure'? (Chris Manning)","Chris Manning","Y","Y","Y","Social & Leisure","Cultural Heritage",100000,"Asbestos removal, security systems and general restoration costs of the building.  Important scheduled Ancient Monument – Edwardian Pumping station still commercially pumping 5 million gallons of water a day.  Twyford’ s only tourist attraction.","Twyford Parish","2013-06-01",null,"Twyford Waterworks Trust",null,"None",{"$f":"L123-S123","v":{"$error":"#VALUE!"}},null,"Anne Bone?"]
["Washington","Horsham","The Recreation Ground, Washington","Replacement of children's play area.",null,"Chris Patterson","Y","Y","Y","Social & Leisure","Play space",65000,"Parish Minutes.  The current equipment is over 10 years old and showing signs of deterioration.  Washington PC would like to replace it with up to date equipment, providing facilities for children of all abilities and needs, constructed from sustainable and environmentally sympathetic materials.  Councillors understand the importance of providing an area for children and families to exercise and socialise outdoors and are planning to replace the existing equipment before it becomes unusable.","Washington Parish","2013-05-01",null,null,2018,6500]
["Winchester","WCC","St Cross Meadows, Winchester","Reinstatement / rebuild of heritage water meadow features to restore a cultural landscape and improve conditions for biodiversity at this highly popular visitor destination",null,null,"Y","Y","Y","Social & Leisure","Cultural Heritage",25000,"Capital to Revenue:  10 to 1","David.Rumble@hiwwt.org.uk Hampshire & Isle of Wight Wildlife Trust ","2014-10-01",null,null,2017,null,null,"People Places; Living Landscapes"]
["Wisborough Green ","CDC","The Green, Wisborough Green ","Sports Pavilion Refurbishment: upgrade changing and toilet facilities.  ",null,"Chris Patterson","Y","Y","Y","Social & Leisure","Sports centres, equipment",350000,"Ward Profile 2011 WG Ward produced by Corporate Info Team within CDC.\nBuilding starting to look 40 years old.  In great use at weekends by large numbers playing cricket, rugby, football and a range of village events such as the Fete, Lawnmower race, Balloon festival, School fete, Fair et al.but shortcomings evident","Wisborough Green  Parish Rep","2013-04-01",null,"Parish Council/Sports Association",null,0,{"$f":"L126-S126","v":350000}]
["Wisborough Green ","CDC","The Green, Wisborough Green","Sports field renovation",null,"Chris Patterson","Y","Y","Y","Social & Leisure","Sports centres, equipment",25000,"Ward Profile 2011 WG Ward produced by Corporate Info Team within CDC.\nBuilding starting to look 40 years old.  In great use at weekends by large numbers playing cricket, rugby, football and a range of village events such as the Fete, Lawnmower race, Balloon festival, School fete, Fair et al.but shortcomings evident","Wisborough Green  Parish Rep","2013-04-01",null,"Parish Council/Sports Association",null,0,{"$f":"L127-S127","v":25000}]
["Wiston","Horsham","Wiston Village Centrer","New children’s play area. ",null,"Chris Patterson","Y","Y","Y","Social & Leisure","Play space",50000,"Village Plan.  Currently there are no facilities for children or families in the village.  Councillors would be pleased to provide a small play area, for children of all abilities and needs, constructed from sustainable, environmentally sympathetic materials.  Many younger families are moving into the village, but have to drive to Ashington or Steyning for any play or exercise facilities.  We have many visitors to the area, due to rugby fixtures, Wiston Tea Room and campsite and walkers on the South Downs Way, but there is nowhere for children to play and socialise.","Wiston Parish Council","2013-06-01",null,null,2015,null,{"$f":"L128-S128","v":50000}]
["A3 corridor","EHDC","A3/B3006","Work with Highways Agency to address last remaining at-grade junction on the A3-North of Liss: Ham Barn roundabout, junction of A3 with B3006","Worth further investigation","Andy Beattie",null,"Y",null,"Transport","Highway works",200000,"Hampshire Strategic Infrastructure Statement / East Hants District Transport Statement 2012","Hampshire County Council","2013-02-01",null,"Highways Agency / Hampshire County Council",2017,"none",200000,"to be funded by HA"]
["A3 corridor","EHDC","A3 crossing west and south of Petersfield","New cycle/footbridge(s) across A3 west of Petersfield (Bedford Road and/or Osier Road/Paddock Way).  Creating cycle route from Petersfield Train station to Stroud (via several existing footpaths approaching and alongside western side of A3) and also to Bu","Petersfield to QECP is  being delivered by LSTF HCC funding 14/15",null,null,"Y",null,"Transport","Rights of Way",500000,"Petersfield Neighbourhood Plan:\nGetting around objective 1 – Make petersfield a more pedestrian and cycle friendly place to live.\nPolicy GAP2 - need to establish a rolling programme of cycle routes and pedestrian improvements, this should include employment areas of the town (Bedford Road Industrial Estate for example).\n\nSection 11.3 - create a cycle path across the A3 and railway to allow access to the West of Petersfield (towards Stroud) potentially using an existing underpass at Osier Road.\n\nCommunity feedback included requests to ‘provide  new/safer on-street cycle routes and more off-road routes into the surrounding countryside’.\n\nNew offroad A3 crossing @ £500,000 + 14km cyclepath @ £80,000/km = £1.62m.  (£2.12m with two A3 crossings)\n\nHampshire County Council Countryside Access Plan (CAP)(4486).\n\nFootpath / cycle path along Greenway Lane (1km from village to A3) identified in Buriton Parish Plan","Petersfield Town Council","2014-08-01",null,"SDNPA Rights of Way.  LSTF.  Hampshire County Council Countryside Service: Alison.perry@hants.gov.uk / petronella.nattrass@hants.gov.uk; 02392 592409 / 01962 845326","2017/18"]
["Arun","Arun","West side of River Arun","Littlehampton to Arundel Green Link (Arun Local Plan Policy TSP2) along west bank of River Arun to Arundel possible expansion into SDNP.  EA Lower Tidal River Arun Study – split into multiple units of works through Arun, SDNP and into Horsham.  EA looking at gap funding with some overlap between Arun and SDNPA jurisdictions around Adundel.  ",null,"Tim Squire",null,"Y",null,"Transport","Cycling",500000,"Cost estimate based on 6km from Littlehampton to Arundel.  Further route may continue further north into SDNP/Horsham District.","Arun & Horsham District Councils","2014-10-01"]
["Berwick","Wealden","Berwick Station","New cycle path Berwick Station to Alfriston: connecting station to SDNP across A27",null,null,null,"Y",null,"Transport","Cycling",{"$f":"2.4*80000","v":192000},"From Parish Council: Berwick is a small Wealden Parish partly within the SDNP. The Berwick Way is a cycle path/ footway to the south of Berwick Station which has been constructed in partnership with ESCC. The purpose of the project is to connect the ‘Berwick Station’ area, to the north of the Parish, with the ‘Lower Berwick’ and ‘Berwick Village’ areas of the Parish and give access to the SDNP. Unfortunately due to funding issues only phase one of the project has been completed and without external funding there is unlikely to be any further progress. ","Berwick Parish Council","2013-12-01","Partly","ESCC"]
["Brighton Area","Brighton Hove","Brighton & Hove (Outside of SDNP)","Cycle lane across A27 flyover (double-roundabout) connecting north-end Dyke Road Avenue to south-end Devil's Dyke Road. (0.5km)","More info reqd. Unaware of this scheme","Alister Linton-Crook",null,"Y",null,"Transport","Cycling",40000,null,"Friends of the Earth (Chris Todd)"]
["Brighton Area","Brighton Hove","Brighton & Hove (Outside of SDNP)","Improve access to start of Dyke Trail","SDNPA can support. No costs or design yet","Tim Squire",null,"Y",null,"Transport","Rights of Way",80000,"Discuss with National Trust regarding northern end.","Friends of the Earth (Chris Todd)"]
["Brighton Area","Brighton Hove","Brighton & Hove (Outside of SDNP) Link Green Ridge to Waterhall","Improve link across Mill Road: central reservation and 40mph speed limit. Bridge route upgraded to bridleway",null,"Tim Squire",null,"Y",null,"Transport","Rights of Way",25000,null,"Friends of the Earth (Chris Todd)"]
["Brighton Area","Lewes","Ditchling Road","New footpath (off-road) from Ditchling Road (at A27) to Ditchling Beacon (3km)",null,"Tim Squire",null,"Y",null,"Transport","Rights of Way",90000,null,null,null,null,"Link with current LSTF and Cycling in National Park schemes"]
["Buriton","EHDC",null,"Community minibus (capital purchase of bus, not running costs)","Details of capital and/or revenue costs and project objectives","Allison Thorpe",null,"Y",null,"Transport","Public Transport",50000,"Parish Plan: subject to assessment of need","Buriton Parish Council","2013-08-01"]
["Central","CDC","Area around Wisborough Green","Community minibus (capital purchase of bus, not running costs)","Details of capital and/or revenue costs and project objectives","Allison Thorpe",null,"Y",null,"Transport","Public Transport",50000,"Feasibility Study undertaken (submitted to NPA)","Wisborough Green Parish Rep","2013-04-01"]
["Central","CDC/EHDC","Rother Valley","Midhurst to Petersfield Cycle Path on old railway line.","Connect with Stedham to Midhurst scheme (LSTF WSCC delivery 14/15)","Alister Linton-Crook",null,"Y",null,"Transport","Cycling",1700000,"Sustrans Feasibility Study led by 'Shortcut' March 2014. Rogate Annual Parish Meeting 2011","Rogate Parish Council; Elsted and Treyford Parish Rep","2013-07-01",null,"WSCC/HCC","2-3 yrs to deliver"]
["Cuckmere Valley","Lewes",null,"New cycle route from Exceat to Seaford (2km from Seven Sisters Country Park to edge of Seaford along A259)","More info reqd. Unaware of this scheme","Alister Linton-Crook",null,"Y",null,"Transport","Cycling",160000,null,"SDNPA Eastern Downs Team (via Andy Beattie)","2013-08-01"]
["Denmead","WCC","Denmead","Cycle path from Denmead to Corhampton (10km)",null,"Tim Squire",null,"Y",null,"Transport","Cycling",{"$f":"10*80000","v":800000},"WCC IDP","Hampshire County Council Countryside Service: Alison.perry@hants.gov.uk / petronella.nattrass@hants.gov.uk; 02392 592409 / 01962 845326",null,null,null,"by 2023"]
["Duncton","CDC","Dunction High Street","Footpath / cycle path from bus stop to shops (1km)","More info reqd. Unaware of this scheme","Alister Linton-Crook",null,"Y",null,"Transport","Cycling",80000,"Impossible to walk or cycle safely through village centre.","Duncton Parish Rep","2013-04-01",null,"Chichester District Council, West Sussex County Council ",null,null,{"$f":"L142-S142","v":80000}]
["East Dean & Friston","Wealden","Parish-wide","New cycle route alongside A259 from Friston Pond to Eastbourne GC. Approx 4km","More info reqd. Feasibility Study reqd","Alister Linton-Crook",null,"Y",null,"Transport","Cycling",400000,null,"SDNPA Eastern Downs Team (via Andy Beattie)","2013-08-01"]
["East Dean & Friston","Wealden","Mouth of Cuckmere River","Pedestrian bridge","SDNPA very unlikely to support this proposal to add a structure into an unspoilt landscape. The mouth to the Cuckmere will become unprotected under plans submitted by EA so a bridge would be at risk of damage anyway.","Tim Squire",null,"Y",null,"Transport","Rights of Way",80000,"Lack of access to iconic English view","The Gilbert Estate, The Estate Office, The Green, East Dean, East Sussex, BN20 0BY, Charlie@beachyhead.org.uk, 01323 423 906","2013-06-01",null,"SDNPA / ESCC / Environment Agency","2018-2020","?"]
["East Dean (West Sussex)","CDC","East Dean / Charlton.","New Footpath from East Dean to Singleton via Charlton (3km)",null,"Tim Squire",null,"Y",null,"Transport","Rights of Way",90000,null,"East Dean Parish Rep","2013-04-01",null,null,null,null,{"$f":"L145-S145","v":90000}]
["East Hants","EHDC","East Hants villages to Alton Cycle Link; Alton, Selborne, Worldham, Farringdon, Chawton areas","Upgrading/resurfacing of BOATs/bridleways so that the public can cycle from Alton into the East Hants Villages of East and West Worldham and to Selborne and Gilbert Whites House – Chawton and Farringdon – linking Jane Austen and Gilbert White and providing access from Alton railway station. Led by HCC, South Downs National Park Authority in partnership with local residents.","More info reqd. Unaware of this scheme","Alister Linton-Crook",null,"Y",null,"Transport","Cycling",1000000,"Hampshire County Council Strategic Infrastructure Statement / HCC Countryside Service","Hampshire County Council","2013-02-01",null,"HCC",2015,"LSTF Bid",0]
["East Hants","EHDC","North East Hants","Improvements and traffic management (Droxford, Hambledon and Twyford)","Worth further investigation","Andy Beattie",null,"Y",null,"Transport","Highway works",310000,"East Hampshire & Winchester Transport Statements 2012 contain full details of projects and locations","Hampshire County Council","2013-02-01",null,"HCC/Developer Funding",2022,"none",310000]
["East Hants","EHDC","North East Hants","Junction improvements, traffic calming and routing (Liss & Liphook,Petersfield, Sheet Village, Greatham and Buriton).","Worth further investigation","Andy Beattie",null,"Y",null,"Transport","Highway works",250000,"East Hampshire & Winchester Transport Statements 2012 contain full details of projects and locations","Hampshire County Council","2013-02-01",null,"HCC/Developer Funding",2017,"45000 from s106",205000]
["East Hants","EHDC","North East Hants","New and upgraded bus stop facilities (Liphook, Liss, Binsted): Build out for bus stop outside Tesco Express on Hill Brow Road. Upgrade existing bus stop facilities at the Jolly Farmer crossroads on the Blacknest corridor",null,"Allison Thorpe",null,"Y",null,"Transport","Public Transport",35000,"East Hampshire & Winchester Transport Statements 2012 contain full details of projects and locations","Hampshire County Council","2013-02-01",null,"HCC/Developer Funding",2022,"10000 from minor works programme",25000]
["East Hants","EHDC","East Hants","Provision/ completion of footpaths, cycle routes, pedestrian crossings and other road safety measures (various locations within East Hampshire District)",null,"Tim Squire",null,"Y",null,"Transport","Rights of Way",3490000,"East Hampshire & Winchester Transport Statements 2012 contain full details of projects and locations","Hampshire County Council","2013-02-01",null,"HCC/Developer Funding",2022,"none",3490000]
["East Hants","EHDC","North East Hants","Provision / completion of footpaths, pedestrian crossings (Petersfield, Liss, Liphook)",null,"Tim Squire",null,"Y",null,"Transport","Rights of Way",270000,"East Hampshire & Winchester Transport Statements 2012 contain full details of projects and locations","Hampshire County Council","2013-02-01",null,"HCC/Developer Funding",2017,120000,150000]
["Eastbourne","EBC","Eastbourne","Improved cycle route from Eastbourne Station to SDW","This is being delivered by ESCC & EBC. Not sure if all funding is in place?","Alister Linton-Crook",null,"Y",null,"Transport","Cycling",0,"Funded by ESCC and EBC","SDNPA Strat Lead","2013-09-01",null,"ESCC, SDNPA"]
["Elsted and Treyford ","CDC","Elstead Village","Community minibus (capital purchase of bus, not running costs)","Details of capital and/or revenue costs and project objectives","Allison Thorpe",null,"Y",null,"Transport","Public Transport",50000,null,"Elsted and Treyford Parish Rep ","2013-04-01",null,null,null,null,{"$f":"L153-S153","v":50000}]
["Fernhurst","CDC","Syngenta Site-Route Unknown","Cycle paths including from Syngenta Site to village centre (c.4km)","Route unknown.","Alister Linton-Crook",null,"Y",null,"Transport","Cycling",{"$f":"4*80000","v":320000},"Neighbourhood Plan","Fernhurst Parish Rep","2013-04-01",null,null,null,null,{"$f":"L154-S154","v":320000}]
["Fernhurst","CDC",null,"Community minibus (capital purchase of bus, not running costs)","Details of capital and/or revenue costs and project objectives","Allison Thorpe",null,"Y",null,"Transport","Public Transport",50000,"Neighbourhood Plan","Fernhurst Parish Rep","2013-04-01",null,null,null,null,{"$f":"L155-S155","v":50000}]
["Graffam","CDC","Graffam Recreation Ground","Improved car parking","No detail","Andy Beattie",null,"Y",null,"Transport","Car Park",100000,"Insufficient parking facilities for use","Graffham Parish","2013-08-01",null,null,null,0]
["Hampshire","EHDC","Whitehill-Bordon","New cycle route to complete ‘missing link’ in the Shipwrights Way between Whitehill-Bordon and Liphook","David Deane on lead","Alister Linton-Crook",null,"Y",null,"Transport","Cycling",130000,"Local need, CAP","Hampshire County Council Countryside Service: Alison.perry@hants.gov.uk / petronella.nattrass@hants.gov.uk; 02392 592409 / 01962 845326","2013-07-01",null,"HCC Countryside","2015-03-01","Linking Communities funding Confirmed"]
["Hampshire",null,"West Meon/Alton","New cycle route between Alton and West Meon (using on- and off-road routes) as alternative to A32 (20km)","More info reqd. Unaware of this scheme","Alister Linton-Crook",null,"Y",null,"Transport","Cycling",{"$f":"20*80000","v":1600000},"CAP, local need. Cost Not known (and permissions needed)","Hampshire County Council Countryside Service: Alison.perry@hants.gov.uk / petronella.nattrass@hants.gov.uk; 02392 592409 / 01962 845326","2013-07-01",null,"HCC Countryside",2023,"none"]
["Hampshire",null,"Bishops Waltham to SDW at Corhampton","New cycle route between Bishops Waltham and the South Downs Way National Trail (10km)","More info reqd. Unaware of this scheme","Alister Linton-Crook",null,"Y",null,"Transport","Cycling",{"$f":"10*80000","v":800000},"CAP (339)","Hampshire County Council Countryside Service: Alison.perry@hants.gov.uk / petronella.nattrass@hants.gov.uk; 02392 592409 / 01962 845326","2013-07-01",null,"Parish Councils/HCC Countryside/ SDNPA ",2023]
["Hampshire",null,"Itchen Valley","Complete off-road walking and cycling route along the Itchen Valley between Kings Worthy and Alresford, avoiding the B3047 and A31 (10km)","More info reqd. Unaware of this scheme","Alister Linton-Crook",null,"Y",null,"Transport","Cycling",{"$f":"10*80000","v":800000},"CAP (433, 434)","Hampshire County Council Countryside Service: Alison.perry@hants.gov.uk / petronella.nattrass@hants.gov.uk; 02392 592409 / 01962 845326",null,null,"HCC / Parish Councils / National Park Authority"]
["Hampshire",null,"Petersfield to QECP & SDW","New cycle route from Petersfield to Queen Elizabeth Country Park and the South Downs Way","Project being delivered by March 2015","Alister Linton-Crook",null,"Y",null,"Transport","Cycling",800000,"CAP","Hampshire County Council Countryside Service: Alison.perry@hants.gov.uk / petronella.nattrass@hants.gov.uk; 02392 592409 / 01962 845326","2013-07-01",null,"HCC Highways","2015-03-01","Linking Communities funding Confirmed"]
["Hampshire",null,"Bishops Waltham","New cycle route Bishops Waltham to Swanmore College (3km)","More info reqd. Unaware of this scheme","Alister Linton-Crook",null,"Y",null,"Transport","Cycling",{"$f":"3*80000","v":240000},"WCC IDP; Link important for both Swanmore and Bishops Waltham parishes; HCC Highways have done a feasibility study for on-road cycling route: Countryside Service assessing feasibility of upgrading footpaths to provide an off-road route. Link important for both Swannore and B Waltham","Hampshire County Council Countryside Service: Alison.perry@hants.gov.uk / petronella.nattrass@hants.gov.uk; 02392 592409 / 01962 845326",null,null,"HCC Highways/ Countryside Service"]
["Hampshire",null,"Selborne","Writers Way' New circular cycling route from Alton through Selborne, Chawton and Farringdon. Approx 20 miles.","Nick Heasman on lead","Alister Linton-Crook",null,"Y",null,"Transport","Cycling",50000,"CAP","Hampshire County Council Countryside Service: Alison.perry@hants.gov.uk / petronella.nattrass@hants.gov.uk; 02392 592409 / 01962 845326",null,null,"HCC / NPA","LSTF funds by Mar2015 Remainder by 2016","£50k HCC Capital £6k HCC 106; £50k LSTF; £18K EHDC 106"]
["Hampshire",null,"Bishops Waltham, Botley","Complete Bishops Waltham to Botley footpath and cycleway/bridleway providing link between railway station and S Downs National Park hub at Bishops Waltham","More info reqd. Unaware of this scheme","Alister Linton-Crook",null,"Y",null,"Transport","Cycling",0,"WCC IDP; CAP; local need","Hampshire County Council Countryside Service: Alison.perry@hants.gov.uk / petronella.nattrass@hants.gov.uk; 02392 592409 / 01962 845326",null,null,"Parish Councils","by 2023","Funding from LSTF"]
["Hampshire",null,"Lavant Valley villages","Community minibus for Lavant Valley (capital purchase of bus, not running costs)","not sure if infrastructure","Allison Thorpe",null,"Y",null,"Transport","Public Transport",50000,null,"Parish Rep","2013-04-01",null,null,null,null,{"$f":"L165-S165","v":50000}]
["Hamsey","Lewes","Cooksbridge station","New footpath from Hamsey Cooksbridge Station (along A275)(2km)",null,"Tim Squire",null,"Y",null,"Transport","Rights of Way",60000,null,"SDNPA Eastern Downs Team (via Andy Beattie)","2013-08-01"]
["Hurstpierpoint","MSDC","To school ","Community/school minibus (capital purchase of bus, not running costs)","Details of capital and/or revenue costs and project objectives","Allison Thorpe",null,"Y",null,"Transport","Public Transport",50000,null,"Hurstpierpoint Parish Rep","2013-04-01",null,null,null,null,{"$f":"L167-S167","v":50000}]
["Kingston (East Sussex)","Lewes","A27 / Kingston Village","Improved access to the bus stop on the A27 from the village, for use of Brighton & Hove Company bus services.","Expanded service provision (revenue expenditure) is not likely to be supported as CIL funding is a single finite payment.  ","Allison Thorpe",null,"Y",null,"Transport","Public Transport",null,"Kingston Parish Action Plan 2007 and 2011 and the 2013 village questionnaire (results pending assessment).","Kingston (ES) Parish Council","2013-06-01",null,"Parish Council?? Transport Company",2016,0]
["Kingston (East Sussex)","Lewes","Kingston village ‘through road’ between A27 and C7.","New footpath Wellgreen Lane bus stop (east of the C7) to the Lewes Garden Centre (Swanborough Drove)(1km).",null,"Tim Squire",null,"Y",null,"Transport","Rights of Way",30000,"Current foot access to the Lewes Garden Centre from Kingston or by visitors arriving by bus is by walking on the C7 road where there is a 50 miles an hour speed limit.","Kingston (ES) Parish Council","2013-06-01",null,"Parish Council?? Transport Company",2016,0]
["Lavant","CDC","Throughout village","Maintenance of internal village roads - repair pot holes","Not CIL - standard repairs","Andy Beattie",null,"Y",null,"Transport","Highway works",30000,null,"Lavant Parish Rep","2013-04-01",null,null,null,null,{"$f":"L170-S170","v":30000}]
["Lewes","Lewes","On-street at Friars Walk","Car Parking ","No detail","Andy Beattie",null,"Y",null,"Transport","Car Park",200000,null,"Lewes Workshop Reps","2013-04-01",null,null,null,null,{"$f":"L171-S171","v":200000}]
["Lewes","Lewes","Newhaven; Piddinghoe; Southease; Rodmell; Iford; Kingston; Lewes to Ringmer along B2192 (\"C7\")","Ouse Valley Cycle Network / Egrets Way / Lewes to Ringmer - Potential gap after March2015 1-Piidinghoe village section (Highways scheme) and 2-Pidinghoe to Newhaven section (~2km)","£675k funding in place (Cycle Ambition) to deliver majority of route by March 2015. Potentially 2 missing sections 1- Piddinghoe Village (Highways scheme - £200k) 2- Piddinghoe to Newhaven (£200k)","Alister Linton-Crook",null,"Y",null,"Transport","Cycling",1075000,"Sustrans Feasibility Study / Planning Application submitted March 2014, Committee July 2014","SDNPA Eastern Downs Team (via Andy Beattie); Rodmell Parish Council; Friends of Lewes Society","2013-08-01",null,"Ouse Valley Cycle Network / East Sussex County Council / Egrets Way Consortium",null,675000]
["Lewes","Lewes","At or near existing bus station, Lewes.","Refurbish Bus Station","ESCC: Negotiations on current planning applications are considering delivering part of the existing service however this will not address all of the site or replace all of the current service.  ","Allison Thorpe",null,"Y",null,"Transport","Public Transport",100000,"Existing bus station has poor facilities for visitors or those connecting journeys.","Lewes Workshop Reps; Friends of Lewes Society","2013-04-01",null,"Rees Elliott",null,null,{"$f":"L173-S173","v":100000}]
["Liss","EHDC",null,"Community minibus (capital purchase of bus, not running costs)","Details of capital and/or revenue costs and project objectives","Allison Thorpe",null,"Y",null,"Transport","Public Transport",25000,"Liss Parish Council.  Costs provided by parish council.","Liss Parish Council","2013-08-01",null,null,"by 2021"]
["Midhurst","CDC","Various","Bus shelteres (x2) at North Street Interchange need improvement plus 3 new bus shelters (location TBC)",null,null,null,"Y",null,"Transport","Public Transport",{"$f":"3*2450","v":7350},"Cost estimate from 2008.","Midhurst Town Council via CDC","2014-06-01"]
["Peacehaven","Lewes","Peacehaven","New cycle route from Peachaven 'Big Park' to link with South Downs NP.  Surface upgrade of bridleways within site and upgrade RoW footpaths to shared-use / bridleway within site and beyond into NP to connect with Egrets Way and SDW (Alister L-C)",null,"Alister Linton-Crook",null,"Y",null,"Transport","Cycling",60000,"LSTF Project Board and ESCC","SDNPA Strat Lead","2013-09-01",null,"ESCC"]
["Petersfield","EHDC","Train Station","Improvements and provision of parking at Petersfield train station","No detail","Andy Beattie",null,"Y",null,"Transport","Car Park",2000000,"EHDC Joint Core Strategy IDP 2014 Policy CP29.  Also East Hampshire & Winchester Transport Statements 2012 contain full details of projects and locations","EHDC JCS.  Hampshire County Council","2014-10-01",null,"HCC/Developer Funding",2022,"none",2000000]
["Petersfield","EHDC","Petersfield Town Centre","Car parking improvements and traffic calming","No detail","Andy Beattie",null,"Y",null,"Transport","Car Park",200000,"Petersfield Neighbourhood Plan and EHDC JCS Policy CP29","Petersfield Town Council","2013-08-01",null,"EHDC",null,null,{"$f":"L178-S178","v":200000}]
["Petersfield","EHDC","The Heath","Heath access improvements (sensitive surface treatment, replace bollards with barrier/gate at Heath Road access).",null,null,null,"Y",null,"Transport","Car Park",30000,"Petersfield Neighbourhood Plan Group provided costings","Petersfield Town Council","2014-08-01",null,null,"2015/16"]
["Petersfield","EHDC","The Heath","Sussex Road Car Park improvements (resurfacing)",null,null,null,"Y",null,"Transport","Car Park",30000,"Petersfield Neighbourhood Plan Group provided costings","Petersfield Town Council","2014-08-01",null,null,"2018/19"]
["Petersfield","EHDC","Bell Hill","Improvements to car park surface",null,null,null,"Y",null,"Transport","Car Park",30000,"Petersfield Neighbourhood Plan Group provided costings","Petersfield Town Council","2014-08-01",null,null,"2018/19"]
["Petworth","CDC","Within parish","Community minibus hub","more detail needed","Allison Thorpe",null,"Y",null,"Transport","Public Transport",50000,"Draft Petworth Neighbourhood Plan Scoping Study.  Cost: officer estimate based on small refurbished or shared building","Petworth Parish Council","2013-06-01",null,"SDNPA","2015-2018","None"]
["Poynings","MSDC","Devil's Dyke","Car Park Improvements / enhancements","No detail","Andy Beattie",null,"Y",null,"Transport","Car Park",100000,null,"National Trust; Jane.arnott@nationaltrust.org.uk; jane.cecil@nationaltrust.org.uk; National Trust - London and South East, Polesden Lacey, Dorking, Surrey, RH5 6BD, 01372 455008","2013-07-01",null,null,null,null,{"$f":"L183-S183","v":100000}]
["Poynings","MSDC","Saddlescombe Farm, Devil's Dyke Estate","Parking area improvements","No detail","Andy Beattie",null,"Y",null,"Transport","Car Park",100000,null,"National Trust; Jane.arnott@nationaltrust.org.uk; jane.cecil@nationaltrust.org.uk; National Trust - London and South East, Polesden Lacey, Dorking, Surrey, RH5 6BD, 01372 455008","2013-07-01",null,null,null,null,{"$f":"L184-S184","v":100000}]
["Rogate","EHDC","Village Centre","Additional car parking near village centre","No detail","Andy Beattie",null,"Y",null,"Transport","Car Park",100000,"2007 Parish Plan.  To facilitate village events.  There is virtually no car parking in the centre of the village which is a great disadvantage to the shop and the church. There is reasonable car parking at the Village Hall. However, the main hall holds 100, the small hall 40, and there are also sporting events, and important events such as a well-attended funeral or wedding. There are therefore times when there is simply not enough car-parking.","Rogate Parish","2013-07-01",null,null,null,null,{"$f":"L185-S185","v":100000}]
["Rottingdean","Brighton Hove","Several locations now being considered by BHCC and RPC inc Rottingdean, next to B&H lay-by","Coach Parking space(s) to be provided to facilitate coach parties to visit attractions and businesses in Rottingdean village","No detail","Andy Beattie",null,"Y",null,"Transport","Car Park",100000,"Rottingdean Traders’ Association","Rottingdean Parish (Ken Humpreys)","2013-09-01",null,"BHCC and RPC",null,0,{"$f":"L186-S186","v":100000}]
["Selborne","EHDC","Gilbert White Estate","Village Car Park",null,null,"y",null,"y","Transport","Car Park",100000,null,"Area Ranger on behalf GW Estate","2015-02-01"]
["Selborne","EHDC","Selborne & Blackmoor.\n","Additional car parking","No detail","Andy Beattie",null,"Y",null,"Transport","Car Park",100000,"Selborne car park often overflowing due to visitors. Blackmoor parking limited.  There have been discussions in the past about extending the existing main car park in Selborne. Same goes for the one at the Recreation ground (that is easier as the land is already owned by SPC).  Blackmoor would be dependent upon land in private ownership.","Selborne Parish Council","2013-06-01",null,"East Hants DC & Hampshire CC",null,null,{"$f":"L188-S188","v":100000}]
["Selborne","EHDC","BOAT 66 and 67 ","Refurbish BOATS (Byway open to all traffic)",null,"Tim Squire",null,"Y",null,"Transport","Rights of Way",50000,"BOATS have become heavily damaged by 4x4’s, walkers and riders are put at risk","Selborne Parish Council","2013-06-01",null,"Hampshire County Council",null,null,{"$f":"L189-S189","v":50000}]
["Storrington and Sullington","Horsham","Chantry Lane, Greyfriars Lane and Kithurst Lane","Re-surface car parks","No detail","Andy Beattie",null,"Y",null,"Transport","Car Park",100000,"Undertaking NP process - more evidence in due course","Storrington and Sullington Parish Rep","2013-04-01",null,"County Council ",null,null,{"$f":"L190-S190","v":100000}]
["Storrington and Sullington","Horsham","Thakeham School to Storrington School","New cycle routes linking schools – Thakeham to Storrington (4km)","More info reqd. Unaware of this scheme","Alister Linton-Crook",null,"Y",null,"Transport","Cycling",{"$f":"4*80000","v":320000},"Undertaking NP process - more evidence in due course","Storrington and Sullington Parish Rep","2013-04-01",null,null,null,null,{"$f":"L191-S191","v":320000}]
["Storrington and Sullington","Horsham","Kithurst Lane to Chantry Lane (via Greyfriers Lane)","New cycle route, Kithurst Lane to Chantry Lane (via Greyfriers Lane) (1.5km)","More info reqd. Unaware of this scheme","Alister Linton-Crook",null,"Y",null,"Transport","Cycling",80000,"Undertaking NP process - more evidence in due course","Storrington and Sullington Parish Rep","2013-04-01",null,null,null,null,{"$f":"L192-S192","v":80000}]
["Strategic Cycle Network",null,"Drovers Estate, Singlton","Extension to Centurion Way (cycle route)",null,"Alister Linton-Crook",null,null,null,"Transport","Cycling",7000000,"Likely total cost in range £7-10million including 3 tunnels at £1.5m each. Subject to many variables so intention is to break the project down into sectopms to be prioritised and worked on / funded separately","Alister Linton-Crook","2013-07-01"]
["Twyford","EHDC","Linking Twyford to Hockley Viaduct via Footpath 10 (or 12) , Church Lane and B3335","Strategic cycle route","David Deane on lead","Alister Linton-Crook",null,"Y",null,"Transport","Cycling",250000,"Demand for cycling for commuters and leisure users.  No route from Botley through villages including Twyford to Winchester. Increased demand by Local Plan Part II housing targets","Twyford Parish","2013-06-01",null,"HCC/WCC",null,"None",{"$f":"L194-S194","v":{"$error":"#VALUE!"}}]
["Twyford","EHDC","Near junction of Bourne Lane","Crossing on the B3335 at Northfields",null,"Tim Squire",null,"Y",null,"Transport","Rights of Way",200000,"Safety; level of traffic","Twyford Parish","2013-06-01",null,"Hants County Council",2012,"Partly"]
["Twyford","EHDC","Outside Phoenix Inn","Puffin crossing","highway project AB lead","Tim Squire",null,"Y",null,"Transport","Rights of Way",200000,"Speed / volume of traffic.  Difficulty in crossing the road on the B3335 at this point","Twyford Parish","2013-06-01",null,"HCC"]
["Twyford","EHDC","General","General Footpaths on roads (Widen and review dropped  kerbs for mobility scooters access)",null,"Tim Squire",null,"Y",null,"Transport","Rights of Way",50000,"No Continuous footpath down the B3335 other areas of the village require better access for the disabled to ensure access to shop/ surgery/school/public transport/leisure facilities ","Twyford Parish","2013-06-01",null,"HCC",null,"None",{"$f":"L197-S197","v":{"$error":"#VALUE!"}}]
["Upper Beeding","Horsham","South Downs Way crossing at A283 (Steyning Road)","Create designated crossing waiting areas, signage and surfaced path on verge. Possible central island.","consult Andy Gattiker","Tim Squire",null,"Y",null,"Transport","Rights of Way",75000,"Improvements identified by WSCC and SDW officer. Several near misses documented.  Existing crossing of the very busy of A283 is poorly designed. There is currently no speicific crossing point. ","Andy Gattiker (SDNPA SDW Officer)","2015-10-01","Y","WSCC",2018,25000,{"$f":"L198-S198","v":50000},"Policy 28-30 and SDW Management Plan Policy 8"]
["Washington","Horsham","The Bostal, Washington.  South Downs Way to village","Millennium footpath",null,"Tim Squire",null,"Y",null,"Transport","Rights of Way",75000,"Parish Plan 2004.  Currently the only route is a narrow, winding road, with a speed limit of 60mph, which is concerning for equestrians and those with young children.","Washington Parish ","2013-05-01",null,null,2015,5000]
["Winchester","WCC","Winchester","Cycle routes, pedestrian crossings and other road safety measures (Upham, Itchen Abbas, West Meon and Twyford)","Worth further investigation","Andy Beattie",null,"Y",null,"Transport","Highway works",412000,"East Hampshire & Winchester Transport Statements 2012 contain full details of projects and locations","Hampshire County Council","2013-02-01",null,"HCC/Developer Funding",2017,9000,403000]
["Winchester","WCC","Winchester","New and upgraded bus stop facilities (various bus routes covering parishes including: Corhampton & Meonstoke, Upham, Bramdean & Hinton Ampner, Cheriton, Twyford, West Mean)","These projects also listed separately above. As they would be delivered by the highways authority it may be worth keeping together in one. However, given the projectd high costs we may have concerns about the nature of the proposed improvements. We would want more info.","Allison Thorpe",null,"Y",null,"Transport","Public Transport",222000,"East Hampshire & Winchester Transport Statements 2012 contain full details of projects and locations","Hampshire County Council","2013-02-01",null,"HCC/Developer Funding",2022,"none",222000]
["Wiston","Horsham","Steyning to Storrington, via Wiston","Cycle path from Steyning to Storrington (via Wiston off A283) (13km)","More info reqd. Unaware of this scheme","Alister Linton-Crook",null,"Y",null,"Transport","Cycling",{"$f":"13*80000","v":1040000},"Currently cyclists are required to use the A283, a very dangerous and busy stretch of road.  A cycle way utilising existing bridleways and quieter lanes would provide safe, sustainable access.  Road markings and safety features would need to be installed to make this a viable option for families wishing to cycle to nearby shops and services.","Wiston Parish Council","2013-07-01",null,"WSCC",2020]
["Wiston","Horsham","Hole Street, Wiston","Pavement/footpath (1km) between Wiston and Ashington",null,"Tim Squire",null,"Y",null,"Transport","Rights of Way",30000,"Referred to WSCC.  Families in Hole Street cannot walk to the village shop which is only half a mile away.  The speed and volume of traffic on this rural road prohibits this and a car must be used to travel a short distance.  A pavement will enable villagers to access their own village and shop locally.",null,null,null,"WSCC",2015]
["Worldham","EHDC","East Worldham Village Hall","Car Park for Village Hall","No detail","Andy Beattie",null,"Y",null,"Transport","Car Park",100000,"Parish Plan","Worldham Parish Rep","2013-04-01",null,"Hampshire County Council ??",null,null,{"$f":"L204-S204","v":100000}]
["Worldham","EHDC","St Leonard's Church, Hartley Mauditt","Car Park for St Leonard's Church","No detail","Andy Beattie",null,"Y",null,"Transport","Car Park",100000,"West Worldham Parochial Church Council","Worldham Parish Rep","2013-05-01",null,"West Worldham Parochial Church Council"]
["Worldham","EHDC","West Worldham to Alton","New Cycle Route (West and East Worldham to Alton) (5km)","More info reqd. Unaware of this scheme","Alister Linton-Crook",null,"Y",null,"Transport","Cycling",0,"Parish Plan","Worldham Parish Rep","2013-04-01",null,"SDNPA / HCC",null,"LSTF seeking funding now",{"$f":"L206-S206","v":{"$error":"#VALUE!"}}]
["Droxford","EHDC","Droxford","Improvements to Sewage Treatment Works","Such schemes should be 100% funded through the water company Asset Management Plan (AMP) process. Full detail on all 2015-2020 water company infrastructure will be made available when the water company Asset Management Plans are approved by Ofwat in December 2014. Therefore, the list of proposed water company infrastructure schemes listed in this IDP is not comprehensive (5/6/14). However, there may be a legitimate opportunity for additional CIL funding to increase the scope of such capital works to deliver SDNP benefits. (Chris Manning)","Chris Manning",null,null,"Y","Utilities","Wastewater treatment",0,null,"Droxford Parish Rep","2013-04-01",null,null,null,null,{"$f":"L207-S207","v":0},null,"CM"]
["East Dean (West Sussex)","CDC","East Dean Village","Sewer Flooding","Such 'strategic' schemes should be 100% funded through the water company Asset Management Plan (AMP) process. Full detail on all 2015-2020 water company infrastructure will be made available when the water company Asset Management Plans are approved by Ofwat in December 2014. Therefore, the list of proposed water company infrastructure schemes listed in this IDP is not comprehensive (5/6/14). However, there may be a legitimate opportunity for additional CIL funding to increase the scope of such capital works to deliver SDNP benefits. (Chris Manning)","Chris Manning",null,null,"Y","Utilities","Wastewater treatment",0,null,"East Dean Parish Rep","2013-04-01",null,"Southern Water, Chichester District Council",2014,0,{"$f":"L208-S208","v":0},null,"CM"]
["Elsted and Treyford ","CDC",null,"Provision of mains drainage and treatment of waste","Such 'strategic' schemes should be 100% funded through the water company Asset Management Plan (AMP) process. Full detail on all 2015-2020 water company infrastructure will be made available when the water company Asset Management Plans are approved by Ofwat in December 2014. Therefore, the list of proposed water company infrastructure schemes listed in this IDP is not comprehensive (5/6/14). However, there may be a legitimate opportunity for additional CIL funding to increase the scope of such capital works to deliver SDNP benefits. (Chris Manning)","Chris Manning",null,null,"Y","Utilities","Wastewater treatment",0,null,"Elsted and Treyford Parish Rep ","2013-04-01",null,null,null,null,{"$f":"L209-S209","v":0},null,"CM"]
["Petersfield","EHDC","Petersfield","Relocation of existing Petersfield HWRC to provide a split level site.  HWRC would serve residentis in EHDC and SDNP.","This is infrastructure and is a defined project in HCC's IDP","Angie Blowman",null,null,"Y","Utilities","Utility supply",1000000,"EHDC Joint Core Strategy IDP 2014 Policy CP29.  Also East Hampshire & Winchester Transport Statements 2012 contain full details of projects and locations","Hampshire County Council","2013-02-01",null,"HCC / Waste Providers","Medium to long term","HCC funding",0]
["Ringmer","Lewes","Ringmer","Upgrade sewage infrastructure","This scheme should be 100% funded through the water company Asset Management Plan (AMP) process. Full detail on all 2015-2020 water company infrastructure will be made available when the water company Asset Management Plans are approved by Ofwat in December 2014. Therefore, the list of proposed water company infrastructure schemes listed in this IDP is not comprehensive (5/6/14). However, there may be a legitimate opportunity for additional CIL funding to increase the scope of such capital works to deliver SDNP benefits. (Chris Manning)","Chris Manning",null,null,"Y","Utilities","Wastewater treatment",0,null,"Ringmer Parish Rep","2013-04-01",null,null,null,null,{"$f":"L211-S211","v":0},null,"CM"]
["Rogate","EHDC",null,"Upgrade Wastewater Infrastructure at Parsonage / Hugo Platt","If deemed 'strategic' infrastructure, this scheme should be 100% funded through the water company Asset Management Plan (AMP) process. Full detail on all 2015-2020 water company infrastructure will be made available when the water company Asset Management Plans are approved by Ofwat in December 2014. Therefore, the list of proposed water company infrastructure schemes listed in this IDP is not comprehensive (5/6/14). However, there may be a legitimate opportunity for additional CIL funding to increase the scope of such capital works to deliver SDNP benefits.\n\nNB it may be that the associated developer should be funding this scheme if it represents 'local infrastructure'. (Chris Manning)","Chris Manning",null,null,"Y","Utilities","Wastewater treatment",0,"Sept 2011; May-Aug 2012.","Rogate Parish","2013-07-01",null,null,null,null,null,null,"CM"]
["South East Water catchment area",null,"Clanfield to Tilmore pipeline","Bulk Supply to South East Water.  inter-company transfer from Portsmouth Water, proposed for delivery by 2039 in Water Resource Management Plan 2014 and the associated Strategic Environmental Assessment\n","This scheme should be 100% funded through the water company Asset Management Plan (AMP) process. Full detail on all 2015-2020 water company infrastructure will be made available when the water company Asset Management Plans are approved by Ofwat in December 2014. Therefore, the list of proposed water company infrastructure schemes listed in this IDP is not comprehensive (5/6/14). However, there may be a legitimate opportunity for additional CIL funding to increase the scope of such capital works to deliver SDNP benefits. (Chris Manning)","Angie Blowman",null,null,"Y","Utilities","Utility supply",0,"Portsmouth Water: Water Resource Management Plan 2014 and the associated Strategic Environmental Assessment http://www.portsmouthwater.co.uk/news/default2.aspx?id=10000","Portsmouth Water, South East Water.","2014-10-01",null,"Portsmouth Water, South East Water.",2039,null,0]
[]
[]
[]
[null,null,null,null,null,null,null,null,null,null,null,{"$f":"SUM(L2:L216)","v":82271602}]
[]
["TO INSERT"]
["Adur Worthing",null,"MOVE TO SPEC PROJECTS","Suggested projects including GI strategy and A27 crossings"]
["Cultural heritage audit ",null,null,"I:\\Culture_Heritage_Built_Env\\Art_Crafts\\Cultural Heritage Audit\\Audit work\\Final report"]
["Hampshire County Council",null,"Winchester","Schedule of Transport Improvements"]
["Hampshire County Council",null,null,"Schedule of Transport Improvements"]
["Mid Sussex District Council",null,null,"IDP"]
["Fareham",null,null,"Fareham IDP - some cross-boundary projects"]
["East Sussex County Council",null,null,"Transport Projects IDP submissions"]
["Hampshire County Council",null,"East Hants","Education provision","Contact re school capacity"]
[]
["PNP Policy Ref","Site/Location","Project","Estimated Cost","Notes/Comments"]
["\"A\" Category"]
["CP4 & CP5","Penns Place Playing Fields","New Town Junior Football Pavilion - New Sports Hub incl hockey pitches","1.5M -2.5M  ."]
["CP2 & CP3","Love Lane Playing Fields","New Community & Youth Centre (CtG)","4M .","In tandem with Alternative Funding raised by the FfYP"]
["GAP1, GAP2 , GAP3,GAP4 TDS 9.1 Movement","Railway Station, Lavant Street, Chapel Street, The Square","Improvements to streets, pedestrian and cycle layouts  (Shared Space)","£500K .","TDS 11.1.1 Lavant Street,TDS 11.1.2 Chapel Street, TDS 11.1.3 The Square, TDS 11.2.1 Railway Station"]
["GAP5, GAP6, GAP7 and GAP8","Central, Swan Street and Festival Hall + new car parks at Tesco and Station","Improvements to car parks ","£1.5M  .","TDS 11.1.5 Central Car Park, TDS 11.1.9 Swan Street and BT Exchange, TDS 11.2.6 Festival Hall Car Park (EHDC?)"]
["BEP1, BEP2, BEP3","Improvements to Conservation Area","Paving, street furniture, walls, removal of overhead lines","£300K .","CAAMP Action Plan p.58 TDS 10.1 Overhead Lines"]
["\"B\"  Category "]
["NEP2 Green Network and Open spaces","G2a Green Space east of Causeway Farm               ","New Allocation  - drainage, planting, access                                                                                                  ","£500K .                                                                                                                ","PTC Infrastructure Delivery Plan includes - G1, G3, G5, G7, G8, G9, G10 and G11 - need to rationalise and co-ordinate"]
[null,"G3 Tilmore Brook  ","New Allocation  - planting, access  ","£500K  ."]
[null,"G4 North of Buckmore Farm","New Allocation - creation, planting, access ","£250K  .    "]
[null,"G5 Merritts Meadow ","New Allocation  - drainage, renovation ","£100K  . "]
["NEP6 Links to countryside","Hangers Way                                                                      Serpents Trail                                                                Shipwrights Way","Signage","£10K  .","HCC and SDNPA"]
["NEP7 Biodiversity BAP","General","Biodiversity Action Plan - planting, preservation and management ","£50K  .","Biodiversity Action Plan"]
["NEP8 Streams’ enhancement","Tilmore Brook                                                                   Criddell Stream","Landscaping and improvements to Tilmore Brook within Main Car Park and Criddell Stream to west of Town Centre - Swan Street Car Park and Frenchmans Road","£100K .","TDS 11.1.4"]
["\"C\" Category "]
["GAP1, 2, 3 & 4","All areas","New and improved Cycle/footways","1M ."]
["GAP1","Town Centre","Additional Cycle racks","25k ."]
["TP2 & 3","Town Centre","Interactive Tourist Information kiosk/board","."]
["CP1, CP4; TP3","Penns Place Taro Centre","Extend swimming pool (in conjunction with EHDC & HCC) & improve changing facilities","6M  ","I think this should still be in although EHDC says we have no chance of it happening in the life of the Plan!! The Town will need it when we have all the dwellings built."]
["CP 2 & 3; TP2 & 3","New Museum and Tourism Centre in the former Police Station . ","Assist in raising funds to get this project underway or completed."]
["CP 2 & 3","All PTC Recreation grounds","Improvements/updating Play Equipment","£100k per area"]

{"sheet":"Parish Level <£20k","index":2,"n_rows":116,"n_cols":27,"rows_kept":116,"cut":false,"hidden":false,"merged":[]}
["Parish / Area","District","Exact Location","Infrastructure Project","Category","Sub-Category","Project Cost","Evidence","Submitted by:","Submit Date","In SDNP?","Delivered by","Delivery timescale","Existing Secured funding","Funding Gap","PMP Theme","SDNPA Lead","Local Plan Policies","CIL Eligible?","SCF Eligible?","MPF Eligible?","Other Eligible?","Status","Priority","Officer Group Validation","Parish Council Validation","CIL Approved"]
["Bramber","Horsham","Bramber Church","Public toilet for the church","Facilities Services","Community use",19000,"Cost is for a renovation in existing building including plumbing etc. Other toilet costs found include. Automated toilet unit £45,000, Block with four units and baby changing £170k","Bramber Parish  Rep","2013-04-01",null,2016,null,null,{"$f":"G2-N2","v":19000}]
["Bramber","Horsham","River Adur","Flood management","Green","Flood management",3000,null,"Bramber Parish  Rep","2013-04-01",null,null,null,null,{"$f":"G3-N3","v":3000},null,"RCD"]
["Brighton Area","Brighton Hove","Brighton & Hove (Outside of SDNP). East of Patcham Recreation Ground and allotments","Upgrade footpath link to bridleway","Transport","Rights of Way",20000,"Cost estimate for resurfacing right of way and additional signage. ","Friends of the Earth (Chris Todd)"]
["Brighton Area","Brighton Hove","Brighton & Hove (Outside of SDNP). Top of Carden Avenue","Improve bridleway access ","Transport","Rights of Way",15000,null,"Friends of the Earth (Chris Todd)"]
["Buriton","EHDC","All community buildings","Upgrade external lighting (improve efficiency; reduce light pollution)","Facilities Services","Community building",15000,"Parish Plan.  £4500-£4800 for basic upgrade to EE lighting for a village hall 15m x 6m with high vaulted ceiling","Buriton Parish Council","2013-08-01",null,null,2018]
["Buriton","EHDC","Recreation Ground","Natural Play area","Social & Leisure","Play space",20000,"Parish Plan. £130,000 per Hectare mix play area (natural and equipment)","Buriton Parish Council","2013-08-01",null,null,2018]
["Buriton","EHDC","Childrens' Playground","Refurbish playground inc. carved log features","Social & Leisure","Play space",20000,"Parish Plan","Buriton Parish Council","2013-08-01",null,null,2016]
["Buriton","EHDC","Recreation Ground","Green Gym for adults","Social & Leisure","Sports centres, equipment",16900,"Parish Plan. £16,900 (BTCV est cost)","Buriton Parish Council","2013-08-01",null,null,2020]
["Buriton","EHDC",null,"New public cricket practice facilities","Social & Leisure","Sports centres, equipment",11000,"Parish Plan.  £11,000 Greenbow sports","Buriton Parish Council","2013-08-01",null,null,2020]
["Buriton","EHDC","Near Sheepwash or Village Pond","Community Art or Sculptures reflecting local history","Social & Leisure","Public realm improvement",10000,"Parish Plan","Buriton Parish Council","2013-08-01"]
["Buriton","EHDC",null,"Enhancements to the childrens' bicycle/skate ramps","Social & Leisure","Sports centres, equipment",10000,"Parish Plan","Buriton Parish Council","2013-08-01",null,null,2015]
["Buriton","EHDC","Heritage feature in heart of village","Further enhancements to the old sheepwash ","Social & Leisure","Cultural heritage",5000,"Parish Plan.  People Places Lead cost estimate","Buriton Parish Council","2013-08-01"]
["Buriton","EHDC","Recreation Ground","More seats on Recreation Ground","Social & Leisure","Sports centres, equipment",5000,"Parish Plan","Buriton Parish Council","2013-08-01"]
["Buriton","EHDC","Glebe Road area","New Community Noticeboard","Social & Leisure","Public realm improvement",250,"Parish Plan","Buriton Parish Council","2013-08-01"]
["Bury ","EHDC",null,"Sports and recreation facilities (not including building).","Social & Leisure","Sports centres, equipment",20000,null,"Bury Parish Rep","2013-04-01",null,null,null,null,{"$f":"G16-N16","v":20000}]
["Colden Common","WCC","Colden Common Centre","Refurbish Tennis Courts and Play Area","Social & Leisure","Sports centres, equipment",20000,null,"Colden Common Parish Rep","2013-04-01",null,null,null,null,{"$f":"G17-N17","v":20000}]
["Corhampton & Meonstoke","WCC","St Andrews Green, Meonstoke","Provision of new allotments (£5k) & metered water supply (£15k)","Green","Community Use G.I.",20000,"Parish Plan","Parish Council - Nick Riley, chair@candm-pc.gov.uk; 01489 877958","2013-06-01",null,"Winchester City Council","2014 Q3",0]
["Corhampton & Meonstoke","WCC","Meonstoke Recreation Ground","Renew artificial cricket wicket","Social & Leisure","Sports centres, equipment",10000,"Parish Plan / 7 year plan","Parish Council - Nick Riley, chair@candm-pc.gov.uk; 01489 877951","2013-06-01",null,"Parish Council","2015 Q1",0]
["Corhampton & Meonstoke","WCC","Meonstoke Recreation Ground","Maintaining and/or replacing MUGA perimeter fencing","Social & Leisure","Sports centres, equipment",4750,"Parish Plan / 10 year plan","Parish Council - Nick Riley, chair@candm-pc.gov.uk; 01489 877949","2013-06-01",null,"Parish Council","2014 Q1",0]
["Corhampton & Meonstoke","WCC","Chapel Lane, Meonstoke","Remove & replace children’s swings","Social & Leisure","Sports centres, equipment",4000,"Parish Plan.  £500 removal; £3,500 replacement.","Parish Council - Nick Riley, chair@candm-pc.gov.uk; 01489 877956","2013-06-01",null,"Parish Council","2013 Q3",0]
["Corhampton & Meonstoke","WCC","Meonstoke Recreation Ground","Refurbish or replacing adult exercise equipment.","Social & Leisure","Sports centres, equipment",{"$f":"350*10","v":3500},"Parish Plan suggest annual ongoing cost of £350.  Capitalised for CIL purposes.","Parish Council - Nick Riley, chair@candm-pc.gov.uk; 01489 877950","2013-06-01",null,"Parish Council","Annually",0]
["Corhampton & Meonstoke","WCC","Meonstoke Recreation Ground","Provision of an adult and children’s zip-wire","Social & Leisure","Sports centres, equipment",2500,"Parish Plan","Parish Council - Nick Riley, chair@candm-pc.gov.uk; 01489 877954","2013-06-01",null,"Parish Council","2014 Q3",0]
["Corhampton & Meonstoke","WCC","The Meon Hall, Meonstoke","Renew sports showers in changing rooms","Social & Leisure","Sports centres, equipment",2500,"Meon Hall Management committee plan / 5 year plan","Parish Council - Nick Riley, chair@candm-pc.gov.uk; 01489 877952","2013-06-01",null,"Parish Council","2014 Q1",0]
["Corhampton & Meonstoke","WCC","Meonstoke Recreation Ground","Maintaining MUGA Playing surface.","Social & Leisure","Sports centres, equipment",1400,"Parish Annual budget / 5 year plan.","Parish Council - Nick Riley, chair@candm-pc.gov.uk; 01489 877948","2013-06-01",null,"Parish Council","2014 Q2",0]
["Corhampton & Meonstoke","WCC","Meonstoke Recreation Ground","Redecoration of MUGA Games wall and games storage shed.","Social & Leisure","Sports centres, equipment",1200,"Parish Annual budget / 5 year plan.","Parish Council - Nick Riley, chair@candm-pc.gov.uk; 01489 877947","2013-06-01",null,"Parish Council","2017 Q2",0]
["Corhampton & Meonstoke","WCC","Bucks Head Hill, Meonstoke","Introduction of a new village “Gateway” welcome statement into the village","Social & Leisure","Public realm improvement",1000,"Parish Plan","Parish Council - Nick Riley, chair@candm-pc.gov.uk; 01489 877955","2013-06-01",null,"Hampshire County Council ","2013 Q3",0]
["Corhampton & Meonstoke","WCC","Village green of Stocks Lane & Corhampton Valley Stores","Replace Parish Notice / display boards","Social & Leisure","Public realm improvement",1000,"Parish Plan","Parish Council - Nick Riley, chair@candm-pc.gov.uk; 01489 877953","2013-06-01",null,"Parish Council","2014 Q3",0]
["Corhampton & Meonstoke","WCC","Meon Hall, Meonstoke","Renew line markings to Badminton Court","Social & Leisure","Sports centres, equipment",500,"Parish Plan","Parish Council - Nick Riley, chair@candm-pc.gov.uk; 01489 877961","2013-06-01",null,"Parish Council","2014 Q1",0]
["Corhampton & Meonstoke","WCC","At junction of A32 Alton Road and Bucks Head Hill.","Refurbish / maintain village bus shelter","Transport","Public Transport",2500,"Parish Plan / 5 year","Parish Council - Nick Riley, chair@candm-pc.gov.uk; 01489 877957","2013-06-01",null,"Parish Council","2015 Q1","LSTF??"]
["Ditchling ","Lewes","Ditchling Recreation Ground","Recreational facilities, especially for young people","Social & Leisure","Sports centres, equipment",20000,null,"Ditchling Society","2013-08-01",null,"Parish Council",null,"Parish Council applied to Sports England",{"$f":"G31-N31","v":{"$error":"#VALUE!"}}]
["Ditchling ","Lewes","Between Hustpierpoint and Hassocks","Improve footpath between Hustpierpoint and Hassocks for safe use by schoolchildren.","Transport","Rights of Way",15000,"Empirical observation","Ditchling Society ","2013-08-01",null,"ESCC/WSCC jointly",null,0,{"$f":"G32-N32","v":15000}]
["East Dean & Friston","Wealden","Village Hall, Gilberts Drive, East Dean","Provision of public toilets","Facilities Services","Community use",19000,"Parish Council Village Action Plan.  The Parish has no public toilets and since the creation of the South Downs National Park the footfall within the area has increased significantly with visitors. Consideration has been given to locating public facilities at either the Pavilion (above) and/or adjacent to the Village Hall. With a single facility the latter is the preferred option owing to the central location. The provision of Public Toilets is another strategic objective on the Parish Council’s Village Action Plan. ","Parish Council","2013-06-01",null,"Parish Council",2014,0]
["East Dean & Friston","Wealden","East Dean","New Campsites / Camping Barns","Green","Community Use G.I.",15000,"Parish Plan and lack of existing facilities","The Gilbert Estate, The Estate Office, The Green, East Dean, East Sussex, BN20 0BY, Charlie@beachyhead.org.uk, 01323 423 906","2013-06-01",null,"Gilbert Estate / SDNPA","2015-16","?"]
["East Dean & Friston","Wealden","Crowlink","Re-roofing of the Red Roofed Barn","Social & Leisure","Cultural heritage",20000,"The cost depends on how much of the structure needs replacing to support a slate roof – so anything from £17 - 34 K.\n\nIt isn’t a listed building  but it is very visible particularly from the South Downs Way\n","National Trust; Jane Cecil\nGeneral Manager - South Downs\n \nThe National Trust\nEstate Office\nTop Road\nSlindon\nWest Sussex\nBN18 0RG\n \nMobile: 07900 608206\nDesk: 01243 814554\n","2013-07-01"]
["East Dean & Friston","Wealden","Recreation Ground, Gilberts Drive, East Dean","Refurbishment of Pavilion","Social & Leisure","Sports centres, equipment",5000,"Parish Council Village Action Plan.  The Pavilion is an old wooden structure used on a regular basis (primarily during the summer months) by the cricket team and other organisations or groups. Although it benefits from an annual maintenance programme, it now needs a significant refurbishment including attention to the electrical wiring, an upgrade to the shower and toilet facilities, replacement of several external wall panels, and overall treatment to the external structure. The Pavilion refurbishment is currently on the Parish Council’s Village Action Plan as one of its key strategic objectives. £5000 contribution towards full building works","Parish Council","2013-06-01",null,"Parish Council",2014,0]
["East Dean & Friston","Wealden","East Dean village","New information boards","Social & Leisure","Public realm improvement",1500,null,"East Dean Parish Rep","2013-03-01"]
["East Meon","WCC","Village Centre","Refurbish Village Hall exterior","Facilities Services","Village Hall",20000,"Cost estimate assumes replacement roof and minor external works","East Meon Parish Rep","2013-04-01",null,null,null,null,{"$f":"G38-N38","v":20000}]
["Fernhurst","CDC","???","Public toilets provision","Facilities Services","Community use",19000,"Neighbourhood Plan","Fernhurst Parish Rep","2013-04-01",null,null,null,null,{"$f":"G39-N39","v":19000}]
["Fernhurst","CDC","Parish-wide","Public benches","Social & Leisure","Public realm improvement",5000,"Neighbourhood Plan","Fernhurst Parish Rep","2013-04-01",null,null,null,null,{"$f":"G40-N40","v":5000}]
["Graffam","CDC","Graffam Recreation Ground","Recreation Ground improvements: Area Around self-closing gate – reinstate eroded area;\nTimber and rail fencing: rotten timber; broken rail; loose posts;\nSeats perishing on 2 seat cradle swings;\nChain openings need replacing;\nRubber tiles under cradle swings repair.","Social & Leisure","Sports centres, equipment",1000,"Annual Inspection Fields in Trust (NPFA)\nThe Play Inspection Company\n","Graffham Parish","2013-08-01",null,null,null,0]
["Hambledon","EHDC","Village Hall, West Street","Village Hall - Upkeep/improvement of village hall grounds and play area for community use","Facilities Services","Village Hall",{"$f":"2000*10","v":20000},"Village Hall Trust.  Proponent states £2,000/year running cost.  Capitalised for CIL purposes.","Hambledon Parish","2013-07-01",null,"Village Hall Trust, Parish Council","ongoing","PC precept"]
["Hambledon","EHDC","Church car park","Car parking at the church for visitors/school/tennis - To be expanded/enhanced/surfaced to cope with additional pressures from tourist visits /school expansion","Facilities Services","Car Park",3000,"Parish Plan, Tourism, School Plans","Hambledon Parish","2013-07-01",null,"Parochial Church Council, Parish Council, County Council",2013,0]
["Hambledon","EHDC","Village Centre","Village green and overflow parking ","Green","Community Use G.I.",10000,"£300,000 plot purchase + £10,000 build cost.  Parish Plan, Annual Parish Meeting.\ncar park for amenities and visitors, and to cope with impossible current village parking situation  \nVillage green for games, events and displays (not sports)\n","Hambledon Parish","2013-07-01",null,"Parsih Council",2015,0]
["Hambledon","EHDC","Village-wide","Commission \"Shared Space\" (public realm) – consultancy and feasibility study","Social & Leisure","Public realm improvement",20000,"Parish Plan, Annual Parish Meeting, Flood Plan","Hambledon Parish","2013-07-01",null,"Ben Hamilton-Bailie (TBC)","2013/14","£2,000 parish reserves"]
["Hambledon","EHDC","Village-wide","Heritage signs - Replace modern retro-reflective direction signs and road names with traditional alternatives","Social & Leisure","Public realm improvement",15000,"Annual Parish Meeting, VDS in preparation","Hambledon Parish","2013-07-01",null,"Parish Council, County Council",2014,0]
["Hambledon","EHDC","Hambledon Cricket Club, Brook Lane","Cricket club/school football pitch - Football pitch to be added to Hambledon Cricket Club for school/community use","Social & Leisure","Sports centres, equipment",15000,"School Plans, Cricket Club Plans","Hambledon Parish","2013-07-01",null,"Cricket Club, County Council","2014/15",0]
["Hambledon","EHDC","Village Hall & Stewarts Green","Maintain/improve village play equipment","Social & Leisure","Play space",1200,"Parish Plan","Hambledon Parish","2013-07-01",null,"Parsih Council","ongoing","PC precept"]
["Hambledon","EHDC","West Street","Replace damaged bus shelter with more appropriate vernacular (brick and flint, tiled roof)","Transport","Public Transport",20000,"VDS in preparation","Hambledon Parish","2013-07-01",null,"Parsih Council",2015,0]
["Hambledon","EHDC","Around the village, and adjacent Church and School","Footpath improvement - Hard surfacing and vegetation removal.  In particular to aid school walking bus","Transport","Rights of Way",{"$f":"750*10","v":7500},"Parish Plan, School Plans, Annual Parish Meeting.  Proponent suggests ongoing cost of £750/year.  Capitalised for CIL purposes.","Hambledon Parish","2013-07-01",null,"Parish Council, County Council","2013/14","£250/year PC precept"]
["Lewes","Lewes","Town-wide","Signposting to attractions ","Education","Interpretation",10000,null,"Lewes Workshop Reps","2013-04-01",null,null,null,null,{"$f":"G51-N51","v":10000}]
["Lewes","Lewes","Town-wide","Promote Heritage Trail","Education","Interpretation",5000,"Lewes District Public Realm Framework (2013).  Cost: officer estimate based on similar project.  Interpretation panels, maps, finger posts etc.","SDNPA - Rural Economy Lead","2013-08-01"]
["Lewes","Lewes","Linklater Pavilion, Railway Lane, Lewes","Environmental Change Community Centre improvement to lighting and maintenance of outside.  Includes £2000 LED exhibition display lighting system for Undercroft.","Facilities Services","Community use",20000,"RLWT Strategic Plan","Railway Land Wildlife Trust (RLWT) ","2014-11-01","Y","Railway Land Wildlife Trust (RLWT) ","pre-2017"]
["Lewes","Lewes","Across Lewes, inc Landport and Brooks Road areas.","Tree planting","Green","Biodiversity project",20000,"Society's Tree Survey","Friends of Lewes Society","2013-06-01",null,"Friends of Lewes Society and others",null,"Friends of Lewes Society to bid for funding"]
["Lewes","Lewes","River-side, Lewes","Fittleworth Mill Fish Passage Easement (added by Chris Manning, from Environment Agency WFD nursery list therefore needs confirmation). ","Green","Biodiversity project",10000,"South East River Basin Management Plan, WFD","CM has included this on behalf of EA. NB, CM has developed a synergy between IDP and EA Integrated Environment Programme (IEP) to ensure up-to-date list potnetial associated projects. ",null,null,null,null,null,null,null,"CM"]
["Lewes","Lewes","Winterbourne River","Improve existing open space (Winterbourne River)","Social & Leisure","Cultural heritage",20000,"Lewes District Public Realm Framework (2013)","SDNPA - Rural Economy Lead","2013-08-01"]
["Lewes","Lewes","Thomas A Becket Church","Improve existing open space (Thomas A Becket Church)","Social & Leisure","Cultural heritage",20000,"Lewes District Public Realm Framework (2013)","SDNPA - Rural Economy Lead","2013-08-01"]
["Lewes","Lewes","Cliffe Precint","Improve existing open space (Cliffe Precint)","Social & Leisure","Cultural heritage",20000,"Lewes District Public Realm Framework (2013)","SDNPA - Rural Economy Lead","2013-08-01"]
["Lewes","Lewes","Castle land viewing areas and Battle of Lewes","Improve existing open space (Castle land viewing areas and Battle of Lewes)","Social & Leisure","Cultural heritage",20000,"Lewes District Public Realm Framework (2013)","SDNPA - Rural Economy Lead","2013-08-01"]
["Liss","EHDC","Village Hall","Village Hall: Biomass Boiler","Facilities Services","Energy Efficiency Improvements",20000,"Liss Parish Council","Liss Parish Council","2013-08-01",null,null,"by 2018",null,null,null,"RCD"]
["Liss","EHDC","Liss Community Centre","Improve Liss Community Centre ","Facilities Services","Community building",10000,"Community Group submission","Liss Parish Council","2013-08-01",null,null,"by 2018"]
["Liss","EHDC","Village Hall","Village Hall: Solar Panels","Facilities Services","Energy Efficiency Improvements",5000,"Liss Parish Council","Liss Parish Council","2013-08-01",null,null,"by 2018",null,null,null,"RCD"]
["Liss","EHDC","Village Hall","Village Hall: Loft Insulation","Facilities Services","Energy Efficiency Improvements",3000,"Liss Parish Council","Liss Parish Council","2013-08-01",null,null,"by 2018",null,null,null,"RCD"]
["Liss","EHDC","Riverside Railway Walk","Tree care at Riverside Railway Walk","Green","Biodiversity project",10000,"Parish Plan","Liss Parish Council","2013-08-01",null,null,"by 2018"]
["Liss","EHDC","Riverside Railway Walk","Improvements to Riverside Railway Walk","Green","Access land",5000,"Parish Plan","Liss Parish Council","2013-08-01",null,null,"by 2018"]
["Liss","EHDC",null,"Sports: Artificial Cricket Surface","Social & Leisure","Sports centres, equipment",20000,null,"Liss Parish Council","2013-08-01",null,null,"by 2018"]
["Liss","EHDC",null,"Sports: Bowling Green","Social & Leisure","Sports centres, equipment",20000,null,"Liss Parish Council","2013-08-01",null,null,"by 2021"]
["Liss","EHDC","West Liss Recreation Ground","Sports: Basket ball court","Social & Leisure","Sports centres, equipment",15000,null,"Liss Parish Council","2013-08-01",null,null,"by 2018"]
["Liss","EHDC",null,"Sports: Outdoor Exercise / gym equipment","Social & Leisure","Sports centres, equipment",10000,null,"Liss Parish Council","2013-08-01",null,null,"by 2018"]
["Liss","EHDC","Newman Collard Pavilion","Extension to Newman Collard Pavilion","Social & Leisure","Sports centres, equipment",5000,"Community Group submission","Liss Parish Council","2013-08-01",null,null,"by 2018"]
["Liss","EHDC","Liss Station","Bench and planting: Liss Station","Social & Leisure","Public realm improvement",1000,"Parish Plan","Liss Parish Council","2013-08-01",null,null,"by 2018",null,"LSTF - possible £15k funding for liss station improvements"]
["Liss","EHDC","West Liss Pavilion","Sports: Indoor Bowling Mat","Social & Leisure","Sports centres, equipment",1000,null,"Liss Parish Council","2013-08-01",null,null,"by 2018"]
["Liss","EHDC","Shipwrights Way to the A3 and Parish-wide","Improve village cycle network","Transport","Cycling",10000,"Parish Plan","Liss Parish Council","2013-08-01",null,null,"by 2018"]
["Liss","EHDC","Village Centre","Traffic / parking control","Transport","Highway works",5000,"Parish Plan","Liss Parish Council","2013-08-01",null,null,"by 2018"]
["Liss","EHDC","Lower Mead","Bus shelter","Transport","Public Transport",4000,"Parish Plan","Liss Parish Council","2013-08-01",null,null,"by 2018"]
["Peacehaven","Lewes","Town-wide","National Cycle Network signage/interpretation & promotion of local cycle network","Education","Interpretation",5000,"Lewes District Public Realm Framework (2013)","SDNPA - Rural Economy Lead","2013-08-01"]
["Peacehaven","Lewes","Meridian Line","Interpretation of Meridian Line","Education","Interpretation",5000,"Lewes District Public Realm Framework (2013).  Cost: officer estimate based on similar project.  Interpretation panels, maps, finger posts etc.","SDNPA - Rural Economy Lead","2013-08-01"]
["Petersfield","EHDC","Paddock Way ","Drainage for Paddock Way Recreation Ground","Social & Leisure","Sports centres, equipment",15000,"Petersfield Neighbourhood Plan Group provided costings","Petersfield Town Council","2014-08-01",null,null,"2015/16"]
["Petersfield","EHDC","Bell Hill","Refurbish fencing to Childrens Play Area","Social & Leisure","Play space",5000,"Petersfield Neighbourhood Plan Group provided costings","Petersfield Town Council","2014-08-01",null,null,"2015/16"]
["Petersfield","EHDC","The Heath","Heath access improvements (series of waymarked walks around the Heath, taking in points of interest (inc. Tumuli) and connecting with the footpath network leaading out of town).","Transport","Rights of Way",10000,"Petersfield Neighbourhood Plan Group provided costings","Petersfield Town Council","2014-08-01",null,null,"2016/17"]
["Petersfield","EHDC","Borough Road","Rrefurbish footpath at Borough Road Recreation Ground","Transport","Rights of Way",5000,"Petersfield Neighbourhood Plan Group provided costings","Petersfield Town Council","2014-08-01",null,null,"2016/17"]
["Poynings","MSDC","Saddlescombe Farm, Devil's Dyke Estate","Education Room provision for school groups","Education","Interpretation",20000,"Cost: officer estimate based on similar project.","National Trust; Jane.arnott@nationaltrust.org.uk; jane.cecil@nationaltrust.org.uk; National Trust - London and South East, Polesden Lacey, Dorking, Surrey, RH5 6BD, 01372 455008","2013-07-01"]
["Poynings","MSDC","Devil's Dyke","Toilet Improvements","Facilities Services","Community use",19000,null,"National Trust; Jane.arnott@nationaltrust.org.uk; jane.cecil@nationaltrust.org.uk; National Trust - London and South East, Polesden Lacey, Dorking, Surrey, RH5 6BD, 01372 455008","2013-07-01"]
["Pycombe","MSDC","A273 (Clayton Hill) / South Downs Way crossing","Upgrade South Downs Way crossings","Transport","Rights of Way",12000,"Will require works to highways/",null,"Friends of the Earth (Chris Todd)",null,"2013-07-01"]
["Rodmell ","Lewes","Northease ","Bus Shelter ","Transport","Public Transport",3000,"Request from residents","Rodmell Parish Rep","2013-04-01",null,"East Sussex County Council / Rodmell PC","?","None",{"$f":"G85-N85","v":{"$error":"#VALUE!"}}]
["Rogate","EHDC","Habin Hill to Garbitts Wood","Steps from Habin Hill to Garbitts Wood, to access Woodland Classroom","Green","Access land",20000,"RPC April 2011","Rogate Parish","2013-07-01"]
["Rogate","EHDC",null,"Refurbish Oliver’s Piece for community benefit (Rake Village)","Green","Community Use G.I.",20000,"RPC Jan 2012","Rogate Parish","2013-07-01"]
["Rogate","EHDC","Village Hall Recreation Ground","Practice cricket net & all-weather tennis court.","Social & Leisure","Sports centres, equipment",20000,"(July 2012)","Rogate Parish","2013-07-01"]
["Rottingdean","Brighton Hove","Beacon Hill Local Nature Reserve","Signage & additional information boards","Education","Interpretation",5000,"LNR Working Group. Cost: officer estimate based on similar project.  Interpretation panels, maps, finger posts etc.","Rottingdean Clerk (James Simister)","2013-09-01",null,"BHLNR WG, RPC and BHCC",null,0]
["Rottingdean","Brighton Hove","Access via north-west corner of The Green","Improve footpath surface between Hogg Platt and the Recreation Ground","Transport","Rights of Way",15000,"Rangers and volunteers","Rottingdean Clerk (James Simister)","2013-09-01",null,"Beacon Hill LNR Working Group, RPC and BHCC",null,"Limited RPC funds secured"]
["Rottingdean","Brighton Hove","Access via the Recreation Ground off Falmer Road or from Beacon Hill Local Nature Reserve","Improve footpath surface & siding between the Recreation Ground and Beacon Hill: in particular the angled bridleway path through North Wood","Transport","Rights of Way",15000,"Beacon Hill Local Nature Reserve Working Group ","Rottingdean Clerk (James Simister)","2013-09-01",null,"Beacon Hill Local Nature Reserve Working Group (BHLNR WG), RPC and BHCC",null,"Limited RPC funds may be available for further works"]
["Rottingdean","Brighton Hove","Whiteway Lane and near the ruins of Old Balsdean Farm and towards Castle Hill","Refurbish bridleway gate (including latches and fittings).","Transport","Rights of Way",500,"Ranger, and Rights of Way team at BHCC","Rottingdean Clerk (James Simister)","2013-09-01",null,"Beacon Hill Local Nature Reserve Working Group, RPC and BHCC",null,"Limited RPC finds may be available for repair works"]
["Seaford","Lewes","Town-wide","Interpretation for SDNP in the town","Education","Interpretation",5000,"Lewes District Public Realm Framework (2013).  Cost: officer estimate based on similar project.  Interpretation panels, maps, finger posts etc.","SDNPA - Rural Economy Lead","2013-08-01"]
["Slindon","Arun","Slindon Village","Stane Street Management and Interpretation","Education","Interpretation",5000,"Consultants Report. Cost: officer estimate based on similar project.  Interpretation panels, maps, finger posts etc.","National Trust; Jane.arnott@nationaltrust.org.uk; jane.cecil@nationaltrust.org.uk; National Trust - London and South East, Polesden Lacey, Dorking, Surrey, RH5 6BD, 01372 455008","2013-07-01"]
["Steep","EHDC","Village Hall","Outside Play area for Jubilee Day Nursery, inc. safety flooring and a \"sail\" shelter.","Social & Leisure","Play space",5000,"OFSTED Requirements","Steep Parish Rep","2013-04-01",null,"Trustees of Steep Village Hall",2014,750,{"$f":"G95-N95","v":4250}]
["Storrington and Sullington","Horsham","Storrington High Street","Signpost & interpretation boards","Education","Interpretation",5000,"Undertaking NP process - more evidence in due course. Cost: officer estimate based on similar project.  Interpretation panels, maps, finger posts etc.","Storrington and Sullington Parish Rep","2013-04-01",null,null,null,null,{"$f":"G96-N96","v":5000}]
["Storrington and Sullington","Horsham","Storrington Playground","Refurbish playgrounds ","Social & Leisure","Play space",20000,"Undertaking NP process - more evidence in due course","Storrington and Sullington Parish Rep","2013-04-01",null,null,null,null,{"$f":"G97-N97","v":20000}]
["Storrington and Sullington","Horsham","Sullington Playground ","Refurbish playgrounds ","Social & Leisure","Play space",20000,"Undertaking NP process - more evidence in due course","Storrington and Sullington Parish Rep","2013-04-01",null,null,null,null,{"$f":"G98-N98","v":20000}]
["Telscombe","Lewes","Town-wide","Interpretation for SDNP in the town","Education","Interpretation",5000,"Lewes District Public Realm Framework (2013).  Cost: officer estimate based on similar project.  Interpretation panels, maps, finger posts etc.","SDNPA - Rural Economy Lead","2013-08-01"]
["Telscombe","Lewes","Telscombe Tye","Improve signage and local access points to Telscombe Tye","Transport","Rights of Way",20000,"Lewes District Public Realm Framework (2013)","SDNPA - Rural Economy Lead","2013-08-01"]
["Twyford","EHDC","Itchen Navigation / Twyford Meads Water Meadow ","Itchen navigation.  Restoration of the Twyford Meads\nWater meadow ditches","Green","Biodiversity project",20000,"Damaged caused to ditch infrastructure by high water levels from the Navigation last year. Repairs to the ditch system.","Twyford Parish","2013-06-01",null,"Twyford Parish Council",null,null,{"$f":"G101-N101","v":20000}]
["Twyford","EHDC","Norris Bridge, Finches Lane/Shawford Road","Pedestrian safety measures","Transport","Highway works",20000,"Safety – no pavements, fast traffic no priority system ","Twyford Parish","2013-06-01",null,"HCC",null,"None",{"$f":"G102-N102","v":{"$error":"#VALUE!"}}]
["Twyford","EHDC","PRoW 10/12","Footpaths 10 and 12 (widen and resurface)","Transport","Rights of Way",20000,"Only Safe route up and down the village, overgrown, hedges encroaching, needs widening and re-surfacing.","Twyford Parish","2013-06-01",null,"HCC",null,"Partly",{"$f":"G103-N103","v":{"$error":"#VALUE!"}}]
["Twyford","EHDC","Shipley Road/Northfields Junction","Improvement of Shipley Road/Northfields Junction","Transport","Highway works",5000,"Danger – no clear right of way","Twyford Parish","2013-06-01",null,"Hants County Council",2012,0]
["Washington","Horsham","The Recreation Ground, Washington","Provision of adult outdoor gym equipment.","Social & Leisure","Sports centres, equipment",15000,"Parish Minutes.  Washington PC would like to provide outdoor adult gym facilities.  Currently there is nothing similar in the area.  Adults could exercise and socialise within the village. Providing free facilities for senior citizens during the day and younger adult users during evenings and weekends.  Similar outdoor gyms have proved popular with residents in other parishes.","Washington Parish","2013-05-01",null,null,2018,3000]
["Washington","Horsham","The Street, Washington","Improvements to bridleway #2697 to increase safety to horse and rider travelling over the bridge and provide a mounting point on either side.","Transport","Rights of Way",5000,"Parish Minutes.  Currently, the bridge in question crosses the A24 and has very low railings on either side.  Equestrians are in danger of being thrown over the side of the bridge, should their horse take fright.  Currently riders have to dismount and lead the horse over.  They have asked if the railings could be raised to ensure safety for all users or alternatively, could a mounting block be placed on either side, for those who choose to dismount.","Washington Parish","2013-05-01",null,null,2015,0]
["West Meon","WCC","Meon Warren","Playground equipment (8-14yo)","Social & Leisure","Sports centres, equipment",20000,null,"West Meon Parish Rep","2013-04-01",null,null,null,null,{"$f":"G107-N107","v":20000}]
["Winchester","WCC","St Catherine's Hill (Southern Water land, Winchester)","Installation of a grazing water supply to enable livestock to be taken off the publicly accessible nature reserve and onto layback green infrastructure at busy / sensitive times of year including lambing period.","Green","Community Use G.I.",5000,"Capital to Revenue:  1 to 0","David.Rumble@hiwwt.org.uk Hampshire & Isle of Wight Wildlife Trust ","2014-10-01",null,null,2017,null,null,"People Places; Living Landscapes; Sustainable Futures"]
["Winchester","WCC","Winchester","Improve cycle path from Winchester Station to South Downs Way (2km)","Transport","Cycling",15000,null,"SDNPA Strat Lead","Spet-13",null,"HCC, SDNPA"]
["Wiston","Horsham","Spithandle Lane\nBuncton Xroads\nVillage Shop\nHole St / North Lane junction","Flood Management Measures","Green","Flood management",20000,"Village Plan.  In June 2012 and during every winter, Wiston residents experience flooding to properties.  WSCC and the landowner, Wiston Estate, have undertaken much work to clear ditches, and drains and also create holding areas for surface water.  Further measures to assist the flow of water under the bridge in Spithandle Lane would help protect local properties from flooding.","Wiston Parish Council","2013-06-01",null,"WSCC and Wiston Estate (landowner)",2015,"Grant requested from WSCC Operation Watershed",null,null,"RCD"]
["Wiston","Horsham","Main Road","Traffic calming sign / measures.","Transport","Highway works",10000,"The greatest concern of residents is the volume and speed of traffic using the village as a cut through.  There is a width and speed restriction in place, but this does nothing to calm the traffic.  Councillors have considered many options for dealing with the problem including increased signage, ‘gates’ to give a perception of reduced road width, chevrons to give pedestrians a safe area to walk in or any other option permitted by WSCC.",null,null,null,"WSCC",2015]
["Woolbeding","CDC","Woolbeding and Pound Commons","Education Room provision","Education","Interpretation",20000,"Cost: officer estimate based on similar project.","National Trust; Jane.arnott@nationaltrust.org.uk; jane.cecil@nationaltrust.org.uk; National Trust - London and South East, Polesden Lacey, Dorking, Surrey, RH5 6BD, 01372 455008","2013-07-01"]
["Worldham","EHDC","East Worldham Village Hall","Village Hall maintenance (eg Painting, gutter-clearing)","Facilities Services","Village Hall",{"$f":"500*10","v":5000},"Parish Plan.  Proponent suggests ongoing cost of £500/year.  Capitalised for CIL purposes.","Worldham Parish Rep","2013-05-01",null,"Worldham Parish Council","Annually"]
["Worldham","EHDC","Church Lane, East Worldham","Upgrade Playground Phase 2","Social & Leisure","Play space",20000,"Parish Plan","Worldham Parish Rep","2013-04-01",null,"Worldham Parish Council",null,null,{"$f":"G114-N114","v":20000}]
["Worldham","EHDC","B3004 at East Worldham Village Hall and end of Church Lane, East Worldham","Notice boards","Social & Leisure","Public realm improvement",2000,"Parish Plan","Worldham Parish Rep","2013-04-01",null,"Worldham Parish Council","2013/14",null,{"$f":"G115-N115","v":2000}]
[null,null,null,null,null,null,{"$f":"SUM(G2:G115)","v":1287700}]

{"sheet":"Strategic or Generic Projects","index":3,"n_rows":78,"n_cols":28,"rows_kept":78,"cut":false,"hidden":false,"merged":[]}
["Parish / Area","District","Exact Location","Infrastructure Project","Comments on project","Lead Officer","Category","Sub-Category","Project Cost","Evidence","Submitted by:","Submit Date","In SDNP?","Delivered by","Delivery timescale","Existing Secured funding","Funding Gap","SDNPA Lead","Local Plan Policies","CIL Eligible?","SCF Eligible?","MPF Eligible?","Other Eligible?","Status","Priority","Officer Group Validation","Parish Council Validation","CIL Approved"]
["Sustainable Economic Growth"]
["Natural Capital"]
["Access for All",null,null,"Non-motorised and Access for Priority Group)"]
["Education and Interpretation"]
["Strategic Floodplain Management",null,null,"(eg Assistant Ranger Project?)/adaptability to Climate Change) Ray leading"]
["Newhaven",null,"Town-wide","Enhance gateways to SDNP","GG - don't think this was looked at by Head of Team","Stephen Sibbald","Education","Interpretation",null,"Lewes District Public Realm Framework (2013)","SDNPA - Rural Economy Lead","2013-08-01"]
["Park-wide",null,null,"Signage and interpretation at rail stations","GG - don't think this was looked at by Head of Team","Stephen Sibbald","Education","Interpretation",50000,"Specific Project","Transport Study","SDNPA Strat Lead",null,"2013-09-01",null,null,"some"]
["Shoreham Cement Works","Horsham","A283 / Shoreham Cement Works","Supporting infrastructure for redevelopment of strategic site"]
["Peacehaven",null,"Key locations within town","Enhance gateways to SDNP","GG - don't think this was looked at by Head of Team","Stephen Sibbald","Education","Interpretation",null,"Lewes District Public Realm Framework (2013)","SDNPA - Rural Economy Lead","2013-08-01"]
["Park-wide",null,null,"Enhanced visitor facilities including information and interpretation","GG - don't think this was looked at by Head of Team","NH/Ruth James","Education","Visitor Information",null,"Generic",null,"South Downs Society; steve.ankers@southdownssociety.org.uk; 01798 875077",null,"2013-08-01"]
["Lewes",null,"At access points to the countryside at Mill Road, Southerham, Juggs Road, Hope-in-the-Valley, Spital Road and Nevill Road.","Provide small car parks at access points to the South Downs.","No detail","Andy Beattie","Facilities Services","Car Park",100000,"Visitors are deterred from visiting the Downs around Lewes by lack of car parks and signing at main access points.","Friends of Lewes Society","2013-04-01",null,"ESCC, SDNPA and LDC/LTC in relation to Landport Bottom.",null,null,{"$f":"I12-P12","v":100000}]
["Park-wide",null,"Midhurst, Petworth, Lewes","Police Infrastructure: Proportion of costs, arising from needs in SDNP, towards Division based accommodation provided in new Midhurst and Petworth police stations; adapted Lewes police station; and provision of neighbourhood satellite offices  (Dependant on growth scale and location, but estimated cost based on delivery of 250 units a year)",null,null,"Facilities Services","Community Services",221247,"Submission:  To provide Neighbourhood, Response and Division based policing to address increase in incidents/crimes generated by development.  £27, 416  (cost of accommodation per officer/ staff member) x 8.07 (those staff required as solely dedicated to division) =                   £ 221, 247","Sussex Police","2014-07-01","Yes","Sussex Police ","Over Plan Period, Lewes Police Station later."]
["Sussex County",null,"Sussex County","Police Infrastructure: Proportion of costs, arising from needs in SDNP, towards Central and Shared accommodation provided through the adaptation and extension of central shared sites (e.g. Headquarters, Communication Centres, specialist county wide teams on Division)  (Dependant on growth scale and location, but estimated cost based on delivery of 250 units a year)",null,null,"Facilities Services","Community Services",251678,"Submission:  To provide county wide and specialist policing to support new development and address increase in incidents/crimes generated by development. £27, 416 (per officer/ staff member) x 9.18 (shared staff) =         £251, 678","Sussex Police","2014-07-01","Yes","Sussex Police ","Over Plan Period"]
["Sussex County",null,"Sussex County","Police Infrastructure: Provision of fleet vehicles (marked and unmarked cars, vans, and units for Road Policing) for use by new/increased number of officers (Dependant on growth scale and location, but estimated cost based on delivery of 250 units a year)",null,null,"Facilities Services","Community Services",39590,"Submission:  To address increase in incidents/crimes that require increased patrols and on site responses and visit by police officers. £3995 (cost of fleet per officer) x 9.91 (number of new officers)  =          £ 39, 590","Sussex Police","2014-07-01","Yes","Sussex Police ","Over Plan Period"]
["Sussex County",null,"Sussex County","Police Infrastructure: Provision of fleet bicycles (fully equipped and including some provision of battery assisted bicycles for outlying rural areas) for use by new/increased number of officers (Dependant on growth scale and location, but estimated cost based on delivery of 250 units a year)",null,null,"Facilities Services","Community Services",1982,"Submission:  To address increase in incidents/crimes that require increased patrols and on site responses and visit by police officers.  £200 (cost of bike fleet per officer) x 9.91 (number of new officers)  =      £ 1982","Sussex Police","2014-07-01","Yes","Sussex Police ","Over Plan Period"]
["Sussex County",null,"Sussex County","Police Infrastructure: Specialist equipment for each officer (e.g. body worn camera, radio/telecoms, specialist safety/detection equipment and training) (Dependant on growth scale and location, but estimated cost based on delivery of 250 units a year)",null,null,"Facilities Services","Community Services",125966,"Submission:  To provide police officers and Police Community Support Officers with the necessary facilities and equipment to address the increase in incidents/crimes generated by development.  £12, 711 (cost per officer) x 9.91 (number of new officers)  =                   £125, 966","Sussex Police","2014-07-01","Yes","Sussex Police ","Over Plan Period"]
["Sussex County",null,"Sussex County","Police Infrastructure: Information Technology Equipment for each police officer, including equipment for on site use, enabling greater visibility  (Dependant on growth scale and location, but estimated cost based on delivery of 250 units a year)",null,null,"Facilities Services","Community Services",19820,"Submission:  To provide police officers and Police Community Support Officers with the necessary equipment to address the increase in incidents/crimes generated by development.  £2000 (cost of equipment per officer) x 9.91 (number of new officers)  =                   £19, 820        ","Sussex Police","2014-07-01","Yes","Sussex Police ","Over Plan Period"]
["Sussex County",null,"Sussex County","Police Infrastructure: Information Technology Equipment for each police staff member, providing support to officers  (Dependant on growth scale and location, but estimated cost based on delivery of 250 units a year)",null,null,"Facilities Services","Community Services",7340,"Submission:  To provide police staff members with the necessary equipment to support officers in dealing with increased incidents/crimes generated by development. £1000 (cost of equipment per staff member) x 7.34 (number of new staff)  =                   £7340","Sussex Police","2014-07-01","Yes","Sussex Police ","Over Plan Period"]
["Sussex County",null,"Sussex County","Police Infrastructure: ANPR Cameras x 6 (camera, installation and connect to network) – to be located with regard to the delivery of development, especially across rural isolated areas (Dependant on growth scale and location, but estimated cost based on delivery of 250 units a year)",null,null,"Facilities Services","Community Services",66000,"Submission:  To accommodate growth in population and subsequent growth in crime, particularly useful in investigation and detection of more serious crime types and crime in rural and isolated areas. Cameras to be located with regard to main access routes through the SDNP","Sussex Police","2014-07-01","Yes","Sussex Police ","Over Plan Period"]
["Sussex County",null,"Sussex County","Police Infrastructure: Proportion of costs towards enhanced custody provision, required as a result of new development (Dependant on growth scale and location, but estimated cost based on delivery of 250 units a year)",null,null,"Facilities Services","Community Services",87500,"Submission:  To provide increased county wide custody provision, with the proportion based on development coming forward in the SDNP. Current 4 sqm of custody floor space per 1000 population = need for additional 35sqm due to 8783 population generated by NP by new development = 35 x £2500 (cost of custody per sqm) = £87, 500","Sussex Police","2014-07-01","Yes","Sussex Police ","Over Plan Period"]
["Park-wide",null,null,"Improve green infrastructure, inc disabled access",null,null,"Green","???",null,"Generic",null,"South Downs Society; steve.ankers@southdownssociety.org.uk; 01798 875075",null,"2013-08-01"]
["Park-wide",null,null,"SANG Mitigation - sites and costs needed (related to development locations)",null,null,"Green","Biodiversity project",null,"Generic","Related to applications","CIL Project Manager",null,"2014-01-01","SDNPA","As required"]
["???",null,"???","A possible strategic SUDS retrofitting pilot project in flood-prone towns/villages","Insufficient information","Ray Drabble","Green","Flood management",null,"Generic",null,"Natural England.  John Lister Lead Adviser, Land Use Services Team - Ashford John.Lister@naturalengland.org.uk ",null,"2013-07-01",null,null,null,"RCD"]
["Downland Area",null,"Throughout Downland Area","Additional \"Access Land\" designations under CROW Act 2000",null,null,"Green","Open space",null,"Deficit of provision. http://www.southdowns.gov.uk/__data/assets/pdf_file/0006/344049/Agenda-Item-14-Appendix-1.pdf ","The Camping and Caravanning Club","2013-07-01"]
["Park-wide",null,null,"Strategic Floodplain Management Project",null,null,"Green","Flood management","?","Specific Project","Trevor Beattie / Assistant Rangers","2015-08-01"]
["Along or near SDW",null,null,"Establishment of campsites for Cyclists and Backpackers",null,null,"Social & Leisure","???",null,"Specific Project","Unmet need.","The Camping and Caravanning Club",null,"2013-07-01"]
["Park-wide",null,null,"Promote Tourism (inc. B&Bs)",null,null,"Social & Leisure","???",null,"Generic",null,"Angmering Parish  Rep",null,"2013-04-01","Community Land Trust"]
["Park-wide",null,null,"Cultural Heritage conservation and enhancement","Pete C advised per annum £40,000","Pete Currell","Social & Leisure","Cultural heritage","40000/pa","Cultural Heritage Audit; English Heritage submission.",null,"English Heritage",null,"2013-07-01","SDNPA","ongoing"]
["Park-wide",null,null,"Rescue of buildings on the English Heritage/Historic England \"At Risk Register\"",null,null,"Social & Leisure","Cultural heritage","x","Buildings At Risk Register","Wiggonholt Association","2015-10-01","Yes","SDNPA/English Heritage / Property Owners"]
["Park-wide",null,null,"Visual mitigation of key eyesores (removal, screening)",null,null,"Social & Leisure","Public realm improvement",null,"Generic",null,"South Downs Society; steve.ankers@southdownssociety.org.uk; 01798 875079",null,"2013-08-01"]
["Park-wide",null,null,"Retrofitting of lighting (not LA or HA streetlights)",null,"Pete Currell","Social & Leisure","Public realm improvement",null,"Generic","Dark Skies","SDNPA Dan Oakly",null,"2013-08-01"]
["Park-wide",null,null,"Signing of key entrances to the Park on major transport routes",null,"Pete Currell","Social & Leisure","Public realm improvement",null,"Generic",null,"South Downs Society; steve.ankers@southdownssociety.org.uk; 01798 875078",null,"2013-08-01"]
["Park-wide",null,null,"Public Realm enhancements, particularly in market towns",null,"Pete Currell","Social & Leisure","Public realm improvement",null,"Generic",null,"South Downs Society; steve.ankers@southdownssociety.org.uk; 01798 875076",null,"2013-08-01"]
["Park-wide",null,null,"Developing Parish Lighting Management Plans","Pete C advised per annum £10,000","Pete Currell","Social & Leisure","Public realm improvement","10000/pa","Generic","Dark Skies","SDNPA Andy Beattie",null,"2013-08-01",null,null,null,null,null,null,null,"possible"]
["East",null,"Lewes to Uckfield rail line; Route of former 1858 railway from Hamsey to Uckfield.","Reinstating the Lewes to Uckfield rail link","Suggest this is removed- not suitable for CIL, will need millions of Central  Gov funding and unlikley to come forward in next 10 years as scheme will depend on improvements at East Grinstead first. ","Allison Thorpe","Transport","Public Transport","Being worked up in Network Rail study","Need for additional railway line from Sussex to London due to overcrowding on Brighton mainline.","Friends of Lewes Society","2013-04-01",null,"Network Rail"]
["Park-wide",null,null,"Improve accessibility (limited mobility) to SDNP, inc by car",null,"Allison Thorpe","Transport","Public Transport",null,"Generic",null,"Angmering Parish  Rep",null,"2013-04-01"]
["Park-wide",null,null,"Bus Network; trunk route extentions from coastal towns and Wealden towns; National Park-specific bus stop design and features promoting protecting park purposes",null,"Allison Thorpe","Transport","Public Transport","unknown","Specific Project",null,"SDNPA; Pete Currel (Strategy Leads)",null,41487,"Joint Working with all included Local Authorities","7 years before self-funding","contributions from joint working Local Authorities"]
["Park-wide",null,null,"Bus real time info","would need further investigation as to how this would work. Could see it working in villages if access to electricity available but visual impacts need to be considered. Alternative would be mobile phone updates from bus stops but dependent on coverage. Suggest Feasibility study.","Allison Thorpe","Transport","Public Transport",null,"Generic",null,"Friends of the Earth (Chris Todd)",null,"2013-04-01"]
["Park-wide",null,null,"Improve pedestrian and cycling accessibility into SDNP",null,"Tim Squire","Transport","Rights of Way",null,"Generic","Lewes District Public Realm Framework (2013)","South Downs Society; steve.ankers@southdownssociety.org.uk; 01798 875073; Angmering Parish Rep; Petworth Parish Council; SDNPA Rural Economy Lead;",null,"2013-04-01"]
["Park-wide",null,null,"Signage for walking & cycling",null,"Tim Squire","Transport","Rights of Way",50000,"Generic","Transport Study","SDNPA Strat Lead",null,"2013-09-01",null,null,"some"]
["East Dean & Friston",null,"Parish-wide","Improve mobile phone reception","this is infrastructure; but not a defined project; group mobile phone reception together and treat as park-wide project at this stage; there is a national project led by Harlequin & Arquiva to address areas of poor reception; provisionally 4 areas identified in NP - Angie check areas with Nat who leads for NPA (Angie)","Angie Blowman","Utilities","Telecommunications",null,"Owing to this area’s geographical position the mobile telecoms reception is very poor. There is limited signal from some service providers and zero signal coverage from most. The village has suffered from main-line telecoms failure in the past which fully demonstrated the unsatisfactory service levels of mobile services. It is appreciated that there are several initiatives in the south east area focusing on enhanced broadband, and it suggested that mobile reception be linked to these initiatives to help improve the mobile service coverage, not only to East Dean, but to all similar locations in the south east.   ","Parish Council","2013-06-01",null,"Service Provider(s)"]
["Graffam",null,"Parish-wide","Improve mobile phone reception","As above","Angie Blowman","Utilities","Telecommunications"]
["Hambledon",null,"Village and surroundings","Improve mobile phone reception","As above","Angie Blowman","Utilities","Telecommunications",null,"Parish Plan","Hambledon Parish","2013-07-01",null,"Mobile operators",2014,0]
["Hambledon",null,"Village centre","Community Satellite Dish","As above","Angie Blowman","Utilities","Telecommunications",null,"Parish Plan","Hambledon Parish","2013-07-01",null,"Parish Council, Satellite Operators",2015,0]
["Park-wide",null,null,"Broadband","this is infrastructure; but not a defined project; treat as park-wide project at this stage; national superfast programme being rolled out led by BT and Counties but will not reach all areas of NP; alternative solutions and funding sources under discussion. (Angie)","Angie Blowman","Utilities","Telecommunications",null,"Generic",null,"Rogate, Hambledon, Rowlands Castle, Selborne, Droxford, Graffam, Corhampton & Meon Stoke, Kingston (East Sussex), Worldham Parish Councils",null,"2013-04-01","2017 is government target to achieve 95% superfast broadband coverage","Hampshire: £13.8m for phase 1 90% coverage (mix of Counties, districts, BT and DCMS funding) + £20.6m for phase 2 95% coverage (mix of County and DCMS funding); West Sussex £20m for phase 1 (mix of County, BT & DCMS) and £2.5m for phase 2 (mix of County and DCMS); East Sussex £35.44m for phase 1 (mix of County, BT and DCMS)","Unknown at this stage. There will be a funding gap as the national programme will not cover all premises in the National Park, especially those in rural areas. The premises that will not be covered have still to be made fully clear by the Counties - Hampshire provisional estimate c30,000 and West Sussex 18,000."]
["Catchment area basis",null,null,"Strategic Water resources infrastructure.  ","This is a 'catch all' related to all water supply/resources and wastewater infrastructure. Full detail on all 2015-2020 water company infrastructure will be made available when the water company Asset Management Plans are approved by Ofwat in December 2014. Therefore, the list of proposed water company infrastructure schemes listed in this IDP is not comprehensive (5/6/14). All such schemes should be 100% funded through the water company Asset Management Plan (AMP) process. However, there may be legitimate opportunities for additional CIL funding to increase the scope of such capital works to deliver SDNP benefits - e.g. the restoration of a receiving watercourse associated with a wastewater treatment work upgrade; the landscape screening of wastewater treatment works with native tree planting; the grassing of a covered storage reservoir etc. (Chris Manning)","Angie Blowman","Utilities","Utility supply","To be identified through the Price Review Process","Generic","Ofwat’s price review, Southern Water’s Business Plan and Water Resources Management.  Investment requirements will need to be determined taking all new development into account.","Southern Water; Planning.policy@southernwater.co.uk; Clare Gibbons, Development Manager, Regional Planning, Asset Management; 01273 663143",null,"2013-07-01","Southern Water","As required","OFWAT / AMP Process"]
["Park-wide",null,null,"Local water mains to connect new development to the distribution network at the nearest point of adequate capacity. ","This scheme should be 100% funded through the water company Asset Management Plan (AMP) process. However, there may be a legitimate opportunity for additional CIL funding to increase the scope of such capital works to deliver SDNP benefits. (Chris Manning)","Angie Blowman","Utilities","Utility supply","Needs to be funded by the development. Southern Water will take future income from customers into account.","Generic","Precise requirements will need to be investigated when the development comes forward.  Developer to contact  provider - Southern Water – to undertake capacity assessment.","Southern Water; Planning.policy@southernwater.co.uk; Clare Gibbons, Development Manager, Regional Planning, Asset Management; 01273 663143",null,"2013-07-01","Developer/Southern Water","As per development",0]
["Park-wide",null,"C2C LEP Area","Coast to Capital LEP Strategic Economic Plan projects",null,null,"Transport","Highway Works",null,"http://www.coast2capital.org.uk/strategic-objectives/strategic-economic-plan#sthash.iL5ymDBW.JYyL3R16.dpbs",null,"2014-10-01",null,"Ron Crank C2C LEP"]
["South East Water catchment area",null,null,"Peacehaven water re-use scheme, which comprises a transfer pipeline from Southern Water's Peacehaven Wastewater Treatment Works to Newhaven Wastewater Treatment Works, where a new tertiary treatment plant would be installed, and a further pipeline transferring the treated effluent inland for release into the River Ouse.  The plan proposes that this this would be in place by 2025.  As this incorporates wastewater development this could be a County Matter – an issue that will require discussion with yourselves, Lewes District and East Sussex County Council.\n","This scheme should be 100% funded through the water company Asset Management Plan (AMP) process. Full detail on all 2015-2020 water company infrastructure will be made available when the water company Asset Management Plans are approved by Ofwat in December 2014. Therefore, the list of proposed water company infrastructure schemes listed in this IDP is not comprehensive (5/6/14). However, there may be a legitimate opportunity for additional CIL funding to increase the scope of such capital works to deliver SDNP benefits. (Chris Manning)","Angie Blowman","Utilities","Utility supply",null,"South East Water draft Water Resources Management Plan","South East Water","2013-06-01",null,"SEW",2025,null,0]
["Park-wide",null,null,"Woodland Bats project bid to LIFE+","Emily Brennan leading - to send me more info",null,"Green","Biodiversity project"]
["Park-wide",null,null,"Improve recycling facilities",null,"Claire Potts","Utilities","Waste Management",null,"Generic","Emily Brennan/SDNPA","South Downs Society; steve.ankers@southdownssociety.org.uk; 01798 875081",null,"2013-08-01"]
["Catchment area basis",null,null,"Strategic Wastewater treatment infrastructure  ","Such 'strategic' schemes should be 100% funded through the water company Asset Management Plan (AMP) process. Full detail on all 2015-2020 water company infrastructure will be made available when the water company Asset Management Plans are approved by Ofwat in December 2014. Therefore, the list of proposed water company infrastructure schemes listed in this IDP is not comprehensive (5/6/14). However, there may be a legitimate opportunity for additional CIL funding to increase the scope of such capital works to deliver SDNP benefits. (Chris Manning)","Chris Manning","Utilities","Wastewater treatment",0,"Generic","Ofwat’s price review and Southern Water’s Business Plan.  Investment requirements will need to be assessed on a whole catchment basis, rather than on an individual development site basis.","Southern Water; Planning.policy@southernwater.co.uk; Clare Gibbons, Development Manager, Regional Planning, Asset Management; 01273 663143",null,"Southern Water",null,"As required","OFWAT / AMP Process","CM"]
["Catchment area basis",null,null,"Tertiary treatment of waste at STWorks in SDs river catchment","In theory such schemes should be 100% funded through the water company Asset Management Plan (AMP) process if there are environmental drivers for it. Currently, under the Urban Waste Water Treatment Directive there are no such drivers across the SDNP; there are no designated 'sensitive areas'. Full detail on all 2015-2020 water company infrastructure will be made available when the water company Asset Management Plans are approved by Ofwat in December 2014. Therefore, the list of proposed water company infrastructure schemes listed in this IDP is not comprehensive (5/6/14). (Chris Manning)","Chris Manning","Utilities","Wastewater treatment",0,"Generic","Water framework directive","SDNPA:Western Area manager (Nick Heasman)",null,"Southern Water",null,null,null,"CM"]
["Chalk Downland",null,null,"Big Chalk: Strategic Project includes Chalk grassland restoration (eg Steyning Downland Scheme); Water Vole Reintroduction Project (in habitat restoration and reconnection)",null,"Emily Brennan","Green","Biodiversity project",null,"See Emily Brennan","SDNPA: Biodiversity Lead (Emily Brennan)"]
["Chalk Downland",null,null,"Chalk Streams Project",null,"Emily Brennan","Green","Biodiversity project",null,"See Emily Brennan","SDNPA: Biodiversity Lead (Emily Brennan)","2013-09-01"]
["Chalk Downland",null,null,"Hampshire Chalk Rivers",null,null,"Green","Biodiversity project",null,"See Emily Brennan","SDNPA: Biodiversity Lead (Emily Brennan)"]
["Chalk Downland",null,null,"Wild Adur",null,null,"Green","Biodiversity project",null,"See Emily Brennan","SDNPA: Biodiversity Lead (Emily Brennan)"]
["Park-wide",null,null,"Local sewerage infrastructure to connect new development to the system at the nearest point of adequate capacity. ","This scheme should be 100% funded through the water company Asset Management Plan (AMP) process. However, consideration needs to be given as to what circumstances developers are expected to fund 'local' as opposd to 'strategic' infrastructure. Full detail on all 2015-2020 water company infrastructure will be made available when the water company Asset Management Plans are approved by Ofwat in December 2014. Therefore, the list of proposed water company infrastructure schemes listed in this IDP is not comprehensive (5/6/14).\n\nIf development comes earlier than anticipated within the Local Plan, there needs to be planning policies in place to address this – e.g. putting the onus on developers, again ensuring that infrastructure is provided ahead of development. \n\nHowever, there may be a legitimate opportunity for additional CIL funding to increase the scope of such capital works (funded through water comapnies or developer) to deliver SDNP benefits. (Chris Manning)","Chris Manning","Utilities","Wastewater Treatment",0,"Generic","Precise requirements will need to be investigated when the development comes forward.  Developer to contact  provider - Southern Water – to undertake capacity assessment","Southern Water; Planning.policy@southernwater.co.uk; Clare Gibbons, Development Manager, Regional Planning, Asset Management; 01273 663143",null,"2013-07-01","Developer/Southern Water","As per development",0]
["Park-wide",null,null,"Healthlands Reunited",null,null,"Green","Biodiversity project",null,null,"Emily Brennan/SDNPA"]
["Park-wide",null,null,"Heritage Coast",null,null,"Green","Landscape"]
[null,null,null,"Defence of the Downs",null,null,"??","??"]
["Park-wide",null,null,"Historic Landscapes",null,null,"Social & Leisure","Cultural heritage",null,null,"Anne Bone/SDNPA"]
[]
["NOTES"]
["West Sussex County Council",null,"WSCC ready to suggest a Strategic Infrastructure package based on our development strategy once they are made aware of the strategy and will take into account other funding sources.  They are also fine with broad allocations.","Position Statement",null,null,"All","All",null,null,"WSCC","2014-10-01"]
["Southern Water",null,null,"Stated approach to funding their work programme"]
["South East Water",null,null,"Fully funded Network Infrastructure Improvements to 2025","92km of mains waterpipe at £75m","£0 burden in our IDP."]
["English Heritage",null,null,"Guidance on funding heritage assets"]
["Highways Agency",null,"Meeting Request","Notes of meeting"]
["Natural England",null,null,"Suggests potential project sources"]
["Sussex Wildlife Trust",null,"Meeting Request","Notes of meeting","Met Nov14 more info to follow"]
["National Grid",null,null,"General response"]
["Hampshire Wildlife Trust",null,"Provided detailed projects incorporated into IDP list"]
["ESCC Education",null,null,"http://www.eastsussex.gov.uk/educationandlearning/management/download.htm  Education colleagues will use this document to update IDPs and will hope to send these later this month/early next. "]
[]
["EXCLUDED"]
["Winchester","WCC","Winchester CC area of Park","Extra care housing provision - 183 units to meet needs in the SDNP area",null,"Chris Patterson","Facilities Services","Community service",29000000,"Hampshire County Council Strategic Infrastructure Statement / HCC Adult Services Dept","Hampshire County Council","2013-02-01",null,"HCC, NHS and private sector providers",2025,"none",29000000]

{"sheet":"Data","index":4,"n_rows":51,"n_cols":9,"rows_kept":51,"cut":false,"hidden":false,"merged":[[39,1,39,2],[29,1,32,1],[42,1,44,1],[42,2,44,2],[40,7,46,7],[40,2,41,2],[40,1,41,1],[4,1,9,1],[10,1,13,1],[24,1,27,1],[19,1,23,1],[14,1,18,1]]}
[]
[]
[]
[null,"Categories:","Sub-Categories:","Living Landscapes","People Places","Sus Futures","Sub Totals","Cat Totals"]
[null,"Green Infrastructure","Biodiversity project","x",null,null,{"$f":"SUMIF('Full IDP'!$K$1:$K$987,\"Biodiversity project\",'Full IDP'!$L$1:$L$987)","v":6189252}]
[null,null,"Open space","x",null,null,{"$f":"SUMIF('Full IDP'!$K$1:$K$987,\"Open space\",'Full IDP'!$L$1:$L$987)","v":300000}]
[null,null,"Community Use G.I.","x",null,null,{"$f":"SUMIF('Full IDP'!$K$1:$K$987,\"Community Use G.I.\",'Full IDP'!$L$1:$L$987)","v":90000}]
[null,null,"Renewable Energy Gen.","x",null,null,{"$f":"SUMIF('Full IDP'!$K$1:$K$987,\"Renewable Energy Generation\",'Full IDP'!$L$1:$L$987)","v":0}]
[null,null,"Flood management","x",null,null,{"$f":"SUMIF('Full IDP'!$K$1:$K$987,\"Flood management\",'Full IDP'!$L$1:$L$987)","v":35000}]
[null,null,"Access land","x",null,null,{"$f":"SUMIF('Full IDP'!$K$1:$K$987,\"Access land\",'Full IDP'!$L$1:$L$987)","v":2900000},{"$f":"SUM(G5:G10)","v":9514252}]
[null,"Social & Leisure ","Cultural heritage","x",null,null,{"$f":"SUMIF('Full IDP'!$K$1:$K$987,\"Cultural heritage\",'Full IDP'!$L$1:$L$987)","v":2285000}]
[null,null,"Public realm improvement ",null,"x",null,{"$f":"SUMIF('Full IDP'!$K$1:$K$987,\"Public realm improvement\",'Full IDP'!$L$1:$L$987)","v":4000000}]
[null,null,"Sports centres, equipment",null,null,"x",{"$f":"SUMIF('Full IDP'!$K$1:$K$987,\"Sports centres, equipment\",'Full IDP'!$L$1:$L$987)","v":8580000}]
[null,null,"Play space",null,"x",null,{"$f":"SUMIF('Full IDP'!$K$1:$K$987,\"Play space\",'Full IDP'!$L$1:$L$987)","v":355000},{"$f":"SUM(G11:G14)","v":15220000}]
[null,"Services & Facilities","Community building",null,"x",null,{"$f":"SUMIF('Full IDP'!$K$1:$K$987,\"Community building\",'Full IDP'!$L$1:$L$987)","v":6600000}]
[null,null,"Community service",null,"x",null,{"$f":"SUMIF('Full IDP'!$K$1:$K$987,\"Community service\",'Full IDP'!$L$1:$L$987)","v":650000}]
[null,null,"Community use",null,"x",null,{"$f":"SUMIF('Full IDP'!$K$1:$K$987,\"Community use\",'Full IDP'!$L$1:$L$987)","v":530000}]
[null,null,"Village Hall",null,"x",null,{"$f":"SUMIF('Full IDP'!$K$1:$K$987,\"Village Hall\",'Full IDP'!$L$1:$L$987)","v":1722000}]
[null,null,"Energy Efficiency Improv.",null,null,"x",{"$f":"SUMIF('Full IDP'!$K$1:$K$987,\"Energy Efficiency Improvements\",'Full IDP'!$L$1:$L$987)","v":125000},{"$f":"SUM(G15:G19)","v":9627000}]
[null,"Transport","Rights of Way","x",null,null,{"$f":"SUMIF('Full IDP'!$K$1:$K$987,\"Rights of Way\",'Full IDP'!$L$1:$L$987)","v":5395000}]
[null,null,"Cycling",null,"x",null,{"$f":"SUMIF('Full IDP'!$K$1:$K$987,\"Cycling\",'Full IDP'!$L$1:$L$987)","v":19437000}]
[null,null,"Public Transport",null,"x",null,{"$f":"SUMIF('Full IDP'!$K$1:$K$987,\"Public Transport\",'Full IDP'!$L$1:$L$987)","v":739350}]
[null,null,"Car park",null,"x",null,{"$f":"SUMIF('Full IDP'!$K$1:$K$987,\"Car park\",'Full IDP'!$L$1:$L$987)","v":3490000}]
[null,null,"Highway works",null,"x",null,{"$f":"SUMIF('Full IDP'!$K$1:$K$987,\"Highway works\",'Full IDP'!$L$1:$L$987)","v":1202000},{"$f":"SUM(G20:G24)","v":30263350}]
[null,"Education","Primary Education",null,"x",null,{"$f":"SUMIF('Full IDP'!$K$1:$K$987,\"Primary Education\",'Full IDP'!$L$1:$L$987)","v":12620000}]
[null,null,"Secondary Education",null,"x",null,{"$f":"SUMIF('Full IDP'!$K$1:$K$987,\"Secondary Education\",'Full IDP'!$L$1:$L$987)","v":777000}]
[null,null,"Interpretation",null,"x",null,{"$f":"SUMIF('Full IDP'!$K$1:$K$987,\"Interpretation\",'Full IDP'!$L$1:$L$987)","v":100000}]
[null,null,"Visitor information",null,"x",null,{"$f":"SUMIF('Full IDP'!$K$1:$K$987,\"Visitor information\",'Full IDP'!$L$1:$L$987)","v":1950000},{"$f":"SUM(G25:G28)","v":15447000}]
[null,"Health & Wellbeing","General Health",null,"x",null,{"$f":"SUMIF('Full IDP'!$K$1:$K$987,\"General Health\",'Full IDP'!$L$1:$L$987)","v":1200000},{"$f":"G29","v":1200000}]
[null,"Utility Services","Utility supply",null,null,"x",{"$f":"SUMIF('Full IDP'!$K$1:$K$987,\"Utility supply\",'Full IDP'!$L$1:$L$987)","v":1000000}]
[null,null,"Telecommunications",null,null,"x",{"$f":"SUMIF('Full IDP'!$K$1:$K$987,\"Telecommunications\",'Full IDP'!$L$1:$L$987)","v":0}]
[null,null,"Wastewater treatment",null,null,"x",{"$f":"SUMIF('Full IDP'!$K$1:$K$987,\"Wastewater treatment\",'Full IDP'!$L$1:$L$987)","v":0}]
[null,null,"Waste Management",null,null,"x",{"$f":"SUMIF('Full IDP'!$K$1:$K$987,\"Waste Management\",'Full IDP'!$L$1:$L$987)","v":0},{"$f":"SUM(G30:G33)","v":1000000}]
[null,null,"Sub Totals:",{"$f":"SUMIF(D5:D33, \"x\", $G$5:$G$33)","v":17194252},{"$f":"SUMIF(E5:E33, \"x\", $G$5:$G$33)","v":55372350},{"$f":"SUMIF(F5:F33, \"x\", $G$5:$G$33)","v":9705000},{"$f":"SUM(G5:G33)","v":82271602}]
[]
[]
[]
[]
[]
[null,"Local Plan Housing Requirement[1]",null,"CIL Charging Area[2]","CIL Charge","All units","OMH units (minus 40% AH)","Unit size (sqm)","CIL income (for 90m2 average new house)"]
[null,"Allocated housing land (excluding strategic sites)",1963,"Zone 1",150,{"$f":"1420+150","v":1570},{"$f":"F41*0.6","v":942},90,{"$f":"E41*G41*$H$41","v":12717000}]
[null,null,null,"Zone 2",200,393,236,null,4248000]
[null,"Strategic Sites",615,"Shoreham Cement Works",200,0,{"$f":"F43*0.6","v":0},null,0]
[null,null,null,"Former Syngenta site, Fernhurst (Zone 3)",200,200,{"$f":"F44*0.5","v":100},null,1800000]
[null,null,null,"North Street Quarter, Lewes (Zone 1)",150,415,249,null,3361500]
[null,"Windfalls",765,"Unknown",150,765,459,null,6196500]
[null,"Totals",3343,"-","-",{"$f":"SUM(F41:F46)","v":3343},2005.8,null,{"$f":"SUM(I41:I46)","v":28323000}]
[]
[]
[null,"[1] Local Plan: Preferred Options (Policy SD23 & Table 7.1)"]
[null,"[2] CIL Charging Area and CIL charge per square metre is provided in the Draft CIL Charging Schedule"]